Workbook

Sheet Topics
A1: Topics | B1: Sheet Name (link to jump)
A2: Random Variables
A3: Discrete Random Variables
A4: Continuous Random Variables
A5: Build Discrete Probability Distributions Expected Value for a Discrete Random Variables Variance and Standard Deviation for a Discrete Random Variables | B5: PD(2)
B6: PD(3)
B7: EVSD(1)
B8: EVSD(2)
A9: Binomial Experiment & Binomial Probabilities Expected Value and Variance and Standard Deviation for a Binomial Distribution | B9: B(1)
B10: B(2)
B11: B(3)
B12: B(4)
B13: B(5)

Sheet Detailed Topic List
A1: Video31: | B1: Excel 2013 Statistical Analysis #31: Create Discrete Probability Distribution, Calculate Mean and SD
A2: Number | B2: Topic In Video and minute mark in Video. | C2: Time In Video | R2: Text
A3: =ROWS(A3:A$3) -> 1 | B3: =TRIM(REPLACE(R3,1,SEARCH(")",R3)+1,"")) -> Discussion about Discrete Probability Distributions, Random Variables, Continuous Random Variables, Discrete Random Variables, Discrete Probability Functions, Steps for creating Discrete Probability Distributions and calculating Expected Value (Mean) and Standard Deviation from a Discrete Probability Distributions. | C3: =TRIM(LEFT(R3,SEARCH(")",R3))) -> (00:12) | R3: (00:12) Discussion about Discrete Probability Distributions, Random Variables, Continuous Random Variables, Discrete Random Variables, Discrete Probability Functions, Steps for creating Discrete Probability Distributions and calculating Expected Value (Mean) and Standard Deviation from a Discrete Probability Distributions.
A4: =ROWS(A$3:A4) -> 2 | B4: =TRIM(REPLACE(R4,1,SEARCH(")",R4)+1,"")) -> Create Discrete Probability Distributions for Isaac’s Italian Restaurant where we need to calculate probabilities for the random variable “Number of Banquet Rooms Used in One Day | C4: =TRIM(LEFT(R4,SEARCH(")",R4))) -> (12:50) | R4: (12:50) Create Discrete Probability Distributions for Isaac’s Italian Restaurant where we need to calculate probabilities for the random variable “Number of Banquet Rooms Used in One Day
A5: =ROWS(A$3:A5) -> 3 | B5: Calculate Expected Value (Mean) from Discrete Probability Distributions using SUMPRODUCT. | C5: (15:14) | R5: (15:14) Calculate Expected Value (Mean) from Discrete Probability Distributions using SUMPRODUCT.
A6: =ROWS(A$3:A6) -> 4 | B6: Test to see if Expected Value formula works by calculating Mean for original Data Set | C6: (16:55) | R6: (16:55) Test to see if Expected Value formula works by calculating Mean for original Data Set
A7: =ROWS(A$3:A7) -> 5 | B7: Calculate Standard Deviation from Discrete Probability Distributions Long Hand. | C7: (17:15) | R7: (17:15) Calculate Standard Deviation from Discrete Probability Distributions Long Hand.
A8: =ROWS(A$3:A8) -> 6 | B8: Test to see if Standard Deviation formula works by calculating Standard Deviation for original Data Set using STDEV.P | C8: (20:32) | R8: (20:32) Test to see if Standard Deviation formula works by calculating Standard Deviation for original Data Set using STDEV.P
A9: =ROWS(A$3:A9) -> 7 | B9: Calculate Standard Deviation from Discrete Probability Distributions in a single cell using SUMPRODUCT and SQRT functions | C9: (21:28) | R9: (21:28) Calculate Standard Deviation from Discrete Probability Distributions in a single cell using SUMPRODUCT and SQRT functions
A10: =ROWS(A$3:A10) -> 8 | B10: Calculate Probabilities from Discrete Probability Distributions for Isaac’s Italian Restaurant where we need to calculate probabilities for the random variable “Number of Banquet Rooms Used in One Day | C10: (24:49) | R10: (24:49) Calculate Probabilities from Discrete Probability Distributions for Isaac’s Italian Restaurant where we need to calculate probabilities for the random variable “Number of Banquet Rooms Used in One Day
A11: =ROWS(A$3:A11) -> 9 | B11: Create Discrete Probability Distributions and calculate Expected Value and Standard Deviation and calculate probabilities from Discrete Probability Distributions For Dick’s Hamburger Drive In Customer Arrival Data | C11: (26:12) | R11: (26:12) Create Discrete Probability Distributions and calculate Expected Value and Standard Deviation and calculate probabilities from Discrete Probability Distributions For Dick’s Hamburger Drive In Customer Arrival Data
A13: Video32: | B13: Excel 2013 Statistical Analysis #32: Expected Value & Standard Deviation Discrete Probability
A14: Number | B14: Topic In Video and minute mark in Video. | C14: Time In Video | R14: Text
A15: =ROWS(A$15:A15) -> 1 | B15: =TRIM(REPLACE(R15,1,SEARCH(")",R15)+1,"")) -> Accounting Example with Expected Value and Standard Deviation calculated from a Discrete Probability Distribution | C15: =TRIM(LEFT(R15,SEARCH(")",R15))) -> (00:09) | R15: (00:09) Accounting Example with Expected Value and Standard Deviation calculated from a Discrete Probability Distribution
A16: =ROWS(A$15:A16) -> 2 | B16: =TRIM(REPLACE(R16,1,SEARCH(")",R16)+1,"")) -> Finance Example with Expected Value and Standard Deviation calculated from a Discrete Probability Distribution | C16: =TRIM(LEFT(R16,SEARCH(")",R16))) -> (04:48) | R16: (04:48) Finance Example with Expected Value and Standard Deviation calculated from a Discrete Probability Distribution
A18: Video33: | B18: Excel 2013 Statistical Analysis #33: Binomial Probability Distributions: Tables, Charts, Functions
A19: Number | B19: Topic In Video and minute mark in Video. | C19: Time In Video | R19: Text
A20: =ROWS(A$20:A20) -> 1 | B20: =TRIM(REPLACE(R20,1,SEARCH(")",R20)+1,"")) -> Discussion about Binominal Experiments and Probability Distributions | C20: =TRIM(LEFT(R20,SEARCH(")",R20))) -> (00:11) | R20: (00:11) Discussion about Binominal Experiments and Probability Distributions
A21: =ROWS(A$20:A21) -> 2 | B21: xample 1: Experiment is attempting four sales calls. This example show how to create the Binomial Distribution in Table and Column Chart. This example show the 5 possibilities for comparative operators while using the BINOM.DIST function. | C21: (11:00) | R21: (11:00)Example 1: Experiment is attempting four sales calls. This example show how to create the Binomial Distribution in Table and Column Chart. This example show the 5 possibilities for comparative operators while using the BINOM.DIST function.
A22: =ROWS(A$20:A22) -> 3 | B22: Example 2: Experiment concerns late airline flights. This example show the 5 possibilities for comparative operators while using the BINOM.DIST function. | C22: (24:10) | R22: (24:10) Example 2: Experiment concerns late airline flights. This example show the 5 possibilities for comparative operators while using the BINOM.DIST function.
A23: =ROWS(A$20:A23) -> 4 | B23: Example 3: Experiment concerns West Seattle Bridge “Stuck in Traffic”. | C23: (29:47) | R23: (29:47) Example 3: Experiment concerns West Seattle Bridge “Stuck in Traffic”.
A24: =ROWS(A$20:A24) -> 5 | B24: xample 4: Experiment concerns Student’s probability of withdrawing from Accounting 202. This example show how to use two BINOM.DIST function to calculate probabilities between two values. | C24: (31:39) | R24: (31:39)Example 4: Experiment concerns Student’s probability of withdrawing from Accounting 202. This example show how to use two BINOM.DIST function to calculate probabilities between two values.
A25: =ROWS(A$20:A25) -> 6 | B25: As number of trials get large, distribution approaches a Bell Shape. As the probability approaches 0.5, the distribution approaches a Bell Shape. | C25: (35:24) | R25: (35:24) As number of trials get large, distribution approaches a Bell Shape. As the probability approaches 0.5, the distribution approaches a Bell Shape.

Sheet Keyboards
A1: Primary Key | B1: Action | C1: Keyboard Short Cut | D1: Category
A2: 1 | B2: Move the Active Worksheet up or down | C2: Ctrl + Page Up/Page Down | D2: Navigation
A3: 2 | B3: Put content in Cell and move selected Cell down | C3: Enter | D3: Entering Data in a Cell
A4: 3 | B4: Put content in Cell and keep Cell selected | C4: Ctrl + Enter | D4: Entering Data in a Cell
A5: 4 | B5: Undo | C5: Ctrl + Z | D5: Basic
A6: 5 | B6: Copy | C6: Ctrl + C | D6: Basic
A7: 6 | B7: Paste | C7: Ctrl + V | D7: Basic
A8: 7 | B8: Cut | C8: Ctrl + X | D8: Basic
A9: 8 | B9: Bold | C9: Ctrl + B | D9: Basic
A10: 9 | B10: Put Cell in Edit Mode | C10: F2 | D10: Formula Edit Mode Keys
A11: 10 | B11: Arrow to point to a formula Cell Reference | C11: Arrow Keys | D11: Formula Edit Mode Keys
A12: 11 | B12: SUM function | C12: Alt + = | D12: Formula Edit Mode Keys
A13: 12 | B13: Delete Cell content | C13: Delete | D13: Basic
A14: 13 | B14: Lock Cell Reference (make Absolute) | C14: F4 | D14: Formula Edit Mode Keys
A15: 14 | B15: Put content in Cell and move selected Cell to right | C15: Tab | D15: Entering Data in a Cell
A16: 15 | B16: Put content in Cell and move selected Cell to left | C16: Shift + Tab | D16: Entering Data in a Cell
A17: 16 | B17: Jump to bottom of data set (Current Range) | C17: Ctrl + Arrow | D17: Navigation
A18: 17 | B18: Select to bottom of data set (Current Range) | C18: Ctrl + Shift + Enter | D18: Formula Edit Mode Keys
A19: 18 | B19: Put content in Cell and move selected Cell up | C19: Shift + Enter | D19: Entering Data in a Cell
A20: 19 | B20: Jump Back to Active Cell | C20: Ctrl + Backspace | D20: Formula Edit Mode Keys
A21: 20 | B21: Open Create PivotTable dialog box | C21: Alt, N, V | D21: PivotTable
A22: 21 | B22: Format Chart Element with Task Pane | C22: Ctrl + 1 | D22: Chart
A23: 22 | B23: Open Format Cells dialog box | C23: Ctrl + 1 | D23: Format Cells
A24: 23 | B24: Jump to Cell A1 | C24: Ctrl + Home | D24: Navigation
A25: 24 | B25: Jump to last Cell used | C25: Ctrl + End | D25: Navigation
A26: 25 | B26: Open Control Panel | C26: Window + Pause/Break | D26: Window Key
A27: 26 | B27: Show Desktop | C27: Window + D or Window + M | D27: Window Key
A28: 27 | B28: Select Whole Table (Select Current Region) | C28: Ctrl + * (on Number Pad) or Ctrl + Shift + 8 | D28: Selection
A29: 28 | B29: Select Ranges not next to each other (noncontiguous ranges) | C29: Ctrl + Mouse Click | D29: Selection
A30: 29 | B30: Open Print Options and Print Preview view | C30: Ctrl + P | D30: Basic
A31: 30 | B31: Close Print Options and Print Preview view | C31: Esc | D31: Basic
A32: 31 | B32: New Workbook File | C32: Ctrl + N | D32: Basic
A33: 32 | B33: Save As Dialog Box | C33: F12 | D33: Basic
A34: 33 | B34: Find and Replace | C34: Ctrl + Home | D34: Basic
A35: 34

Sheet Notes
A1: See handwritten notes in PDF download at web site
A3: Chapter 4 Terms:
A4: Probability
A5: E = Event, P = Probability, then P(E) = A Number between 0 and 1, inclusive.
A6: Estimate of the unknown future
A7: Random Experiment:
A8: 1) Well Defined Outcomes
A9: 2) Any single Trial only one outcome can occur
A10: 3) Outcome occurs by chance
A11: Multi-Step Experiment:
A12: Random Experiment with more than 1 Step/Trial
A13: Sample Point
A14: Sample Point = Experimental Outcome
A15: Sample Space
A16: List of all Possible Sample Points/Experimental Outcomes
A17: {Total Number Sample Points} for Multi-Step Experiment:
A18: k = Number of Steps
A19: nk = Outcomes for particular Step
A20: {Total Number Sample Points} = n1 + n2 + … nk
A21: If number of outcomes is same for each Step, {Total Number Sample Points} = n^k
A22: Assigning Probability
A23: Classical = All Sample Points are equally likely
A24: Relative Frequency = Data from past is Relative Frequency Table that has categories which are:
A25: Mutually Exclusive (no item fits into more than one category) and Collectively Exhaustive (enough categories to count everything).
A26: Subjective = Outcomes not equally likely, Little past data, Use best information you can find but it will be your personal belief
A27: Requirements for Assigning Probabilities:
A28: 1) All Sample Points must have a probability between 0 and 1, inclusive
A29: 2) Sum of all Sample Point Probabilities = 1
A30: Event
A31: Collection of 1 or more Sample Points
A32: Probability of an Event
A33: Sum of the probabilities of the Sample Points in the Event
A35: Chapter 5:
A36: Random Variables
A37: A numerical description of the outcome of an experiment
A38: Discrete Random Variables
A39: May assume either: a finite number of values like: 1, 2, 3 or an infinite sequence of numbers like 1, 2, 3… (Gaps between numbers)
A40: Continuous Random Variables
A41: May assume any numerical value in an interval or collection of intervals. Depends on measuring instrument
A42: Many possible numbers between 1 & 2. "No Gaps"
A43: Probability Distributions
A44: A description/Presentation of how the probabilities are distributed over the values of the random variable.
A45: Models
A46: Random Variables and Probability Distributions are models for populations of data that we can use to estimate the unknown future.
A47: Discrete Probability Distributions
A48: A description/Presentation of how the probabilities are distributed over the values of a discrete random variable.
A49: Discrete Probability Function
A50: A probability function, f(x) or P(x), that provides the probability for each value that the discrete random variable can assume.
A51: Requirements for f(x) or P(x)
A52: f(x) = P(x) >= 0 AND ∑f(x) = ∑P(x) = 1
A53: Methods for creating Discrete Probability Distributions:
A54: Classical, Relative Frequency (for large data sets it is called Empirical Discrete Distribution) and Subjective
A55: Advantage of Probability Distributions?
A56: Once you have the table, it is easy to calculate a variety of Events!!!
A57: Steps for building a Discrete Probability Distribution:
A58: 1) Define Random Variable
A59: 2) Build Frequency Distribution
A60: 3) Calculate Relative Frequency - P(x) = f(x)
A61: 4) Check Requirement #1: f(x) >= 0 , Check Requirement #2: Σf(x) = 1
A62: 5) Create a Column Chart for a Discrete Variable (Columns do not touch)
A63: 6) Make predictions
A64: Expected Value for a Discrete Random Variables
A65: E(x) = µ = Weighted Average = ∑x*f(x) = ∑x*P(x), use: =SUMPRODUCT(XRange,P(x)Range)
A66: Variance and Standard Deviation for a Discrete Random Variables
A67: Var = ∑(x-E(x))^2*P(x), use: =SUMPRODUCT((Xrange-E(x))^2,P(x)Range)
A68: SD = SQRT(∑(x-E(x))^2*P(x)), use: =SQRT(SUMPRODUCT((Xrange-E(x))^2,P(x)Range))
A69: Binomial Experiment
A70: Requirements:
A71: 1) Fixed Number of Trials, n = # Trials
A72: 2) Each Trial can only result in two outcomes: Success or Failure
A73: 3) Probability of success is the same for each trial
A74: 4) Trials are independent (one does not affect the next)
A75: Binomial Probability Function
A76: f(x) = P(x) = n!/(x!*(n-x)!)*p^x*(1-p)^(n-x)
A77: In Excel use: BINOM.DIST(x,n,p,cumulative)
A78: x = Number of Successes = Discrete Random Variable = number_s
A79: n = Total Steps/Trials = trials
A80: p = Probability of Success = probability_s
A81: cumulative = FALSE = 0 = probability mass function. Use to calculate exactly x
A82: OR
A83: cumulative = TRUE = 1 = probability mass function. Use to calculate <= x (everything from smallest up to and including x)
A84: Expected Value and Variance and Standard Deviation for a Binomial Distribution
A85: E(x) = µ = mean n*p
A86: Standard Deviation = s = SQRT(n*p*(1-p))
A87: Poisson Distribution
A88: Poisson Probability Distribution can be used to estimate the number of occurrences over a specified interval of time or space
A89: Discrete Random Variable = x = Number of occurrences over a specified interval of time or space.
A90: Good for number of arrivals in waiting line situations over a certain time period (like 15 mins)
A91: Good for number of repairs needed over a distance of road or pipe
A92: Properties (Requirements) of a Poisson Experiment:
A93: 1) The probability of an occurrence is the same for any two intervals of equal length
A94: 2) The occurrence or nonoccurrence in any interval is independent of the occurrence or nonoccurrence in any other interval
A95: 3) Mean = Variance (observed from calculations made off of source data)
A96: f(x) = P(x) = the probability of x occurrences in an interval = height of column when you plot column chart.
A97: Discrete Random Variable = x = Number of occurrences over a specified interval of time or space.
A98: No upper limit for X: 0,1,2,3… , but as x increases past the mean, the probability decreases and gest quite small.
A99: Mean = µ = Calculated from past data
A100: e = constant = 2.71828 = =EXP(1) in Excel
A101: In Excel use: POISSON.DIST(x,mean,cumulative)
A102: x = Number of occurrences over a specified interval of time or space = Discrete Random Variable
A103: mean = µ = Calculated from past data
A104: cumulative = 0 for exactly x OR 1 for less than or equal to x
A105: Hypergeometric Distribution
A106: Similar to Binomial Distribution except: 1) the trails are not independent AND 2) the probability of success changes from trial to trial.
A107: In Excel use: HYPGEOM.DIST(x,n,population_s,number_pop,cumulative)
A108: x = Number of Successes in Sample = Discrete Random Variable = sample_s
A109: n = Trials/Steps in Experiment = Sample Size = number_sample
A110: Number Successes in Pop. = population_s
A111: Population Size = number_pop
A112: cumulative = FALSE = 0 = probability mass function. Use to calculate exactly x
A113: OR
A114: cumulative = TRUE = 1 = probability mass function. Use to calculate <= x (everything from smallest up to and including x)

Sheet Print B
A1: An insurance agent has appointments with 4 clients tomorrow.
A2: From past data, the chance of making a sale is 1 in 5. What is likelihood that she will sell 3 policies in 4 tries?
A3: Binomial Experiment?
A4: 1 | B4: Fixed # of Identical Trials = n | E4: Yes
A5: 2 | B5: Each trial only results in S or F | E5: Yes
A6: 3 | B6: p remains the same for each trial | E6: Yes
A7: 4 | B7: All events are independent | E7: Yes
A9: n = # of Fixed Trials = Appointments | E9: 4
A10: p = Prob of Success = | E10: 0.2
A11: ="Random Discrete Variable = x = # Sales in "&E9&" Tries" -> Random Discrete Variable = x = # Sales in 4 Tries
A12: Mean = µ = E(x) = Expected Value = | E12: =SUMPRODUCT(A18:A22,B18:B22) -> 0.8 | G12: =IF(_xlfn.ISFORMULA(E12),_xlfn.FORMULATEXT(E12),"") -> =SUMPRODUCT(A18:A22,B18:B22)
A13: Mean = µ = E(x) = Expected Value = | E13: =E9*E10 -> 0.8 | G13: =IF(_xlfn.ISFORMULA(E13),_xlfn.FORMULATEXT(E13),"") -> =E9*E10
A14: Standard Deviation = s = | E14: =SUMPRODUCT((A18:A22-E12)^2,B18:B22) -> 0.64 | G14: =SUMPRODUCT((A18:A22-E12)^2,B18:B22)
A15: Standard Deviation = s = | E15: =E9*E10*(1-E10) -> 0.64 | G15: =E9*E10*(1-E10)
A17: X | B17: P(x) = f(x)
A18: 0 | B18: =_xlfn.BINOM.DIST(A18,$E$9,$E$10,0) -> 0.4096 | D18: =IF(_xlfn.ISFORMULA(B18),_xlfn.FORMULATEXT(B18),"") -> =BINOM.DIST(A18,$E$9,$E$10,0)
A19: 1 | B19: =_xlfn.BINOM.DIST(A19,$E$9,$E$10,0) -> 0.4096 | D19: =BINOM.DIST(A19,$E$9,$E$10,0)
A20: 2 | B20: =_xlfn.BINOM.DIST(A20,$E$9,$E$10,0) -> 0.1536 | D20: =BINOM.DIST(A20,$E$9,$E$10,0)
A21: 3 | B21: =_xlfn.BINOM.DIST(A21,$E$9,$E$10,0) -> 0.0256 | D21: =BINOM.DIST(A21,$E$9,$E$10,0)
A22: 4 | B22: =_xlfn.BINOM.DIST(A22,$E$9,$E$10,0) -> 0.0016 | D22: =BINOM.DIST(A22,$E$9,$E$10,0)
A23: Total | B23: =SUM(B18:B22) -> 1 | D23: =SUM(B18:B22)
A25: P(x) = f(x) | B25: P(x) = f(x) | C25: SUM | D25: X
A26: ="P(x = "&D26&")" -> P(x = 3) | B26: =_xlfn.BINOM.DIST(D26,E9,E10,0) -> 0.0256 | C26: =SUM(B21) -> 0.0256 | D26: 3 | F26: =IF(_xlfn.ISFORMULA(B26),_xlfn.FORMULATEXT(B26),"") -> =BINOM.DIST(D26,E9,E10,0) | J26: =IF(_xlfn.ISFORMULA(C26),_xlfn.FORMULATEXT(C26),"") -> =SUM(B21)
A27: ="P(x <= "&D30&")" -> P(x <= 3) | B27: =_xlfn.BINOM.DIST(D27,E9,E10,1) -> 0.9984 | C27: =SUM(B18:B21) -> 0.9984 | D27: 3 | F27: =IF(_xlfn.ISFORMULA(B27),_xlfn.FORMULATEXT(B27),"") -> =BINOM.DIST(D27,E9,E10,1) | J27: =IF(_xlfn.ISFORMULA(C27),_xlfn.FORMULATEXT(C27),"") -> =SUM(B18:B21)
A28: ="P(x > "&D28&")" -> P(x > 3) | B28: =1-_xlfn.BINOM.DIST(D28,E9,E10,1) -> 0.0016 | C28: =SUM(B22) -> 0.0016 | D28: 3 | F28: =1-BINOM.DIST(D28,E9,E10,1) | J28: =SUM(B22)
A29: ="P(x >= "&D27&")" -> P(x >= 3) | B29: =1-_xlfn.BINOM.DIST(D29-1,E9,E10,1) -> 0.0272 | C29: =SUM(B21:B22) -> 0.0272 | D29: 3 | F29: =1-BINOM.DIST(D29-1,E9,E10,1) | J29: =SUM(B21:B22)
A30: ="P(x < "&D29&")" -> P(x < 3) | B30: =_xlfn.BINOM.DIST(D30-1,E9,E10,1) -> 0.9728 | C30: =SUM(B18:B20) -> 0.9728 | D30: 3 | F30: =BINOM.DIST(D30-1,E9,E10,1) | J30: =SUM(B18:B20)

Sheet Print P
A1: ="Arrivals to Dick's Hamburgers at 45th Ave in Seattle at Saturday noon lunch during a 1-minute period. Mean = "&ROUND(B3,2) -> Arrivals to Dick's Hamburgers at 45th Ave in Seattle at Saturday noon lunch during a 1-minute period. Mean = 3.88
A3: Mean | B3: 3.879693487
A4: Variance | B4: 3.754687023
A6: X = Arrivals During 1 min | B6: Poisson P(X)
A7: 0 | B7: =_xlfn.POISSON.DIST(A7,$B$3,0) -> 0.02065715591 | D7: =_xlfn.FORMULATEXT(B7) -> =POISSON.DIST(A7,$B$3,0)
A8: 1 | B8: 0.08014343322 | D8: =_xlfn.FORMULATEXT(B8) -> =POISSON.DIST(A8,$B$3,0)
A9: 2 | B9: 0.1554659779 | D9: =POISSON.DIST(A9,$B$3,0)
A10: 3 | B10: 0.2010534473 | D10: =POISSON.DIST(A10,$B$3,0)
A11: 4 | B11: 0.1950064375 | D11: =POISSON.DIST(A11,$B$3,0)
A12: 5 | B12: 0.1513130411 | D12: =POISSON.DIST(A12,$B$3,0)
A13: 6 | B13: 0.09784136999 | D13: =POISSON.DIST(A13,$B$3,0)
A14: 7 | B14: 0.05422778941 | D14: =POISSON.DIST(A14,$B$3,0)
A15: 8 | B15: 0.02629840017 | D15: =POISSON.DIST(A15,$B$3,0)
A16: 9 | B16: 0.01133663687 | D16: =POISSON.DIST(A16,$B$3,0)
A17: 10 | B17: 0.004398267623 | D17: =POISSON.DIST(A17,$B$3,0)
A18: 11 | B18: 0.001551266386 | D18: =POISSON.DIST(A18,$B$3,0)
A19: 12 | B19: 0.000501536508 | D19: =POISSON.DIST(A19,$B$3,0)
A20: 13 | B20: 0.0001496775326 | D20: =POISSON.DIST(A20,$B$3,0)
A21: 14 | B21: 4.147878201e-05 | D21: =POISSON.DIST(A21,$B$3,0)
A22: 15 | B22: 1.072833069e-05 | D22: =POISSON.DIST(A22,$B$3,0)
A23: Total | B23: =SUM(B7:B22) -> 0.9999966446 | D23: =SUM(B7:B22)
A26: Low X | B26: High X | E26: SUM | F26: POISSON | G26: Formula
B27: 0 | D27: ="P("&B27&")" -> P(0) | E27: =SUM(B7) -> 0.02065715591 | F27: =_xlfn.POISSON.DIST(B27,B3,0) -> 0.02065715591 | G27: =B3^B27*EXP(1)^-B3/FACT(B27) -> 0.02065715591 | I27: =IF(_xlfn.ISFORMULA(E27),_xlfn.FORMULATEXT(E27),"") -> =SUM(B7) | K27: =IF(_xlfn.ISFORMULA(F27),_xlfn.FORMULATEXT(F27),"") -> =POISSON.DIST(B27,B3,0) | N27: =IF(_xlfn.ISFORMULA(G27),_xlfn.FORMULATEXT(G27),"") -> =B3^B27*EXP(1)^-B3/FACT(B27)
A28: 3 | B28: 5 | D28: ="P("&A28&" <= No. Arvls. <= "&B28&")" -> P(3 <= No. Arvls. <= 5) | E28: =SUM(B10:B12) -> 0.5473729259 | F28: =_xlfn.POISSON.DIST(B28,B3,1)-_xlfn.POISSON.DIST(A28-1,B3,1) -> 0.5473729259 | I28: =IF(_xlfn.ISFORMULA(E28),_xlfn.FORMULATEXT(E28),"") -> =SUM(B10:B12) | K28: =IF(_xlfn.ISFORMULA(F28),_xlfn.FORMULATEXT(F28),"") -> =POISSON.DIST(B28,B3,1)-POISSON.DIST(A28-1,B3,1)
A29: 2 | D29: ="P( No. Arvls > "&A29&")" -> P( No. Arvls > 2) | E29: =SUM(B10:B22) -> 0.7437300775 | F29: =1-_xlfn.POISSON.DIST(A29,B3,1) -> 0.7437334329 | I29: =IF(_xlfn.ISFORMULA(E29),_xlfn.FORMULATEXT(E29),"") -> =SUM(B10:B22) | K29: =IF(_xlfn.ISFORMULA(F29),_xlfn.FORMULATEXT(F29),"") -> =1-POISSON.DIST(A29,B3,1)

Sheet PD(1)
A1: Experiment of tossing coin three times
A2: Steps in Experiment | B2: 3
A3: Outcomes Step 1 | B3: 2
A4: Outcomes Step 2 | B4: 2
A5: Outcomes Step 3 | B5: 2 | F5: Success =
A6: Total Experimental Outcomes | B6: =PRODUCT(B3:B5) -> 8 | C6: (Sample Points) | F6: Tails
A7: P(for each) = | B7: =1/B6 -> 0.125 | C7: Classical | F7: ="Notation for "&F6&" is "&LEFT(F6,1) -> Notation for Tails is T
F8: =LEFT(F6,1) -> T
A9: # SP | B9: Toss 1 | C9: Toss 2 | D9: Toss 3 | E9: Sample Space | F9: Probability of Sample Point | G9: # of heads for sample points
A10: 1 | B10: H | C10: H | D10: H | E10: ="("&B10&", "&C10&", "&D10&")" -> (H, H, H) | F10: =1/$B$6 -> 0.125 | G10: =COUNTIF(B10:D10,$F$8) -> 0
A11: 2 | B11: T | C11: H | D11: H | E11: ="("&B11&", "&C11&", "&D11&")" -> (T, H, H) | F11: 0.125 | G11: 1
A12: 3 | B12: H | C12: T | D12: H | E12: (H, T, H) | F12: 0.125 | G12: 1
A13: 4 | B13: H | C13: H | D13: T | E13: (H, H, T) | F13: 0.125 | G13: 1
A14: 5 | B14: T | C14: T | D14: H | E14: (T, T, H) | F14: 0.125 | G14: 2
A15: 6 | B15: T | C15: H | D15: T | E15: (T, H, T) | F15: 0.125 | G15: 2
A16: 7 | B16: H | C16: T | D16: T | E16: (H, T, T) | F16: 0.125 | G16: 2
A17: 8 | B17: T | C17: T | D17: T | E17: (T, T, T) | F17: 0.125 | G17: 3
F18: =SUM(F10:F17) -> 1
A19: x = Discrete Random Variable = | B19: ="# of "&F6&" in 3 flips" -> # of Tails in 3 flips
E20: Steps: | F20: #1 | G20: Define Random Variable
A21: X | B21: Frequency | C21: P(X) = f(x) | D21: Each f(x)>=0? | F21: #2 | G21: Build Frequency Distribution
A22: 0 | B22: =COUNTIF($G$10:$G$17,A22) -> 1 | C22: =B22/$B$26 -> 0.125 | D22: =C22>=0 -> TRUE | F22: #3 | G22: Calculate Relative Frequency - P(x) = f(x)
A23: 1 | B23: =COUNTIF($G$10:$G$17,A23) -> 3 | C23: =B23/$B$26 -> 0.375 | D23: =C23>=0 -> TRUE | F23: #4 | G23: Check Requirement #1: f(x) >= 0
A24: 2 | B24: =COUNTIF($G$10:$G$17,A24) -> 3 | C24: =B24/$B$26 -> 0.375 | D24: =C24>=0 -> TRUE | F24: #5 | G24: Check Requirement #2: Σf(x) = 1
A25: 3 | B25: =COUNTIF($G$10:$G$17,A25) -> 1 | C25: =B25/$B$26 -> 0.125 | D25: =C25>=0 -> TRUE | F25: #6 | G25: Create a Column Chart for a Discrete Variable (Columns do not touch)
A26: Total | B26: =SUM(B22:B25) -> 8 | C26: =SUM(C22:C25) -> 1 | F26: #7 | G26: Make predictions
A28: P(X =1) | B28: =C22 -> 0.125
A29: P(X > = 2) | B29: =SUM(C24:C25) -> 0.5
A30: P(x = 0 or x = 3) | B30: =SUM(C22,C25) -> 0.25 | C30: =C22+C25 -> 0.25
A31: P(X not 2) | B31: =SUM(C22:C23,C25) -> 0.625 | C31: =1-C24 -> 0.625

Sheet PD(2)
A1: Steps to Build Discrete Probability Distribution:
A2: #1 | B2: Define Random Variable
A3: #2 | B3: Build Frequency Distribution
A4: #3 | B4: Calculate Relative Frequency - P(x) = f(x)
A5: #4 | B5: Check Requirement #1: f(x) >= 0 , Check Requirement #2: Σf(x) = 1
A6: #5 | B6: Create a Column Chart for a Discrete Variable (Columns do not touch)
A7: #6 | B7: Make predictions
A9: Isaac's Italian Restaurant has 4 banquet rooms | D9: Number of Rooms | E9: 4
A10: Over the past year, they collected the below data: | D10: X = Random Discrete Variable = Number of Rooms Used for the Day
A12: Day | B12: # Rooms Used | D12: X = # Rooms Used | E12: Frequency | F12: Relative Frequency P(X) | H12: X -E(X) | I12: (X - E(X))^2 | J12: (X - E(X))^2 * P(X)
A13: 2014-01-03 | B13: 1
A14: 2014-01-04 | B14: 2
A15: 2014-01-10 | B15: 4
A16: 2014-01-11 | B16: 3
A17: 2014-01-17 | B17: 3
A18: 2014-01-18 | B18: 2 | D18: Total | I18: s^2
A19: 2014-01-24 | B19: 2
A20: 2014-01-25 | B20: 2 | I20: s
A21: 2014-01-31 | B21: 4 | D21: Mean = Expected Value = E(x) = µ
A22: 2014-02-01 | B22: 1 | D22: Mean
A23: 2014-02-07 | B23: 2 | D23: Population SD
A24: 2014-02-08 | B24: 2 | D24: SD = s
A25: 2014-02-14 | B25: 2
A26: 2014-02-15 | B26: 1
A27: 2014-02-21 | B27: 1 | D27: P(X <=1)
A28: 2014-02-22 | B28: 2 | D28: P(X = 2 OR X = 3)
A29: 2014-02-28 | B29: 2 | D29: P(X > 0)
A30: 2014-03-07 | B30: 2
A31: 2014-03-08 | B31: 4
A32: 2014-03-14 | B32: 2
A33: 2014-03-15 | B33: 3
A34: 2014-03-21 | B34: 2
A35: 2014-03-22 | B35: 3
A36: 2014-03-28 | B36: 3
A37: 2014-03-29 | B37: 2
A38: 2014-04-04 | B38: 2
A39: 2014-04-05 | B39: 2
A40: 2014-04-11 | B40: 2
A41: 2014-04-12 | B41: 3
A42: 2014-04-18 | B42: 3
A43: 2014-04-25 | B43: 1
A44: 2014-04-26 | B44: 1
A45: 2014-05-02 | B45: 3
A46: 2014-05-03 | B46: 3
A47: 2014-05-09 | B47: 1
A48: 2014-05-10 | B48: 3
A49: 2014-05-16 | B49: 2
A50: 2014-05-17 | B50: 3
A51: 2014-05-23 | B51: 1
A52: 2014-05-24 | B52: 1
A53: 2014-05-30 | B53: 2
A54: 2014-05-31 | B54: 1
A55: 2014-06-06 | B55: 1
A56: 2014-06-07 | B56: 4
A57: 2014-06-14 | B57: 3
A58: 2014-06-20 | B58: 1
A59: 2014-06-21 | B59: 3
A60: 2014-06-27 | B60: 2
A61: 2014-06-28 | B61: 2
A62: 2014-07-04 | B62: 2
A63: 2014-07-05 | B63: 2
A64: 2014-07-11 | B64: 3
A65: 2014-07-12 | B65: 3
A66: 2014-07-18 | B66: 2
A67: 2014-07-19 | B67: 2
A68: 2014-07-25 | B68: 2
A69: 2014-07-26 | B69: 1
A70: 2014-08-01 | B70: 2
A71: 2014-08-02 | B71: 2
A72: 2014-08-08 | B72: 3
A73: 2014-08-09 | B73: 0
A74: 2014-08-15 | B74: 3
A75: 2014-08-16 | B75: 4
A76: 2014-08-22 | B76: 3
A77: 2014-08-23 | B77: 1
A78: 2014-08-29 | B78: 2
A79: 2014-08-30 | B79: 2
A80: 2014-09-05 | B80: 1
A81: 2014-09-06 | B81: 2
A82: 2014-09-12 | B82: 3
A83: 2014-09-13 | B83: 2
A84: 2014-09-19 | B84: 2
A85: 2014-09-20 | B85: 3
A86: 2014-09-26 | B86: 3
A87: 2014-09-27 | B87: 1
A88: 2014-10-03 | B88: 1
A89: 2014-10-04 | B89: 2
A90: 2014-10-10 | B90: 1
A91: 2014-10-11 | B91: 3
A92: 2014-10-17 | B92: 3
A93: 2014-10-18 | B93: 2
A94: 2014-10-24 | B94: 2
A95: 2014-10-25 | B95: 2
A96: 2014-10-31 | B96: 2
A97: 2014-11-01 | B97: 1
A98: 2014-11-07 | B98: 2
A99: 2014-11-08 | B99: 4
A100: 2014-11-14 | B100: 0
A101: 2014-11-15 | B101: 4
A102: 2014-11-21 | B102: 2
A103: 2014-11-22 | B103: 1
A104: 2014-11-29 | B104: 3
A105: 2014-12-05 | B105: 4
A106: 2014-12-06 | B106: 3
A107: 2014-12-12 | B107: 3
A108: 2014-12-13 | B108: 2
A109: 2014-12-19 | B109: 1
A110: 2014-12-20 | B110: 3
A111: 2014-12-26 | B111: 2
A112: 2014-12-27 | B112: 2

Sheet PD(2an)
A1: Steps to Build Discrete Probability Distribution:
A2: #1 | B2: Define Random Variable
A3: #2 | B3: Build Frequency Distribution
A4: #3 | B4: Calculate Relative Frequency - P(x) = f(x)
A5: #4 | B5: Check Requirement #1: f(x) >= 0 , Check Requirement #2: Σf(x) = 1
A6: #5 | B6: Create a Column Chart for a Discrete Variable (Columns do not touch)
A7: #6 | B7: Make predictions
A9: Isaac's Italian Restaurant has 4 banquet rooms | D9: Number of Rooms | E9: 4
A10: Over the past year, they collected the below data: | D10: X = Random Discrete Variable = Number of Rooms Used for the Day
A12: Day | B12: # Rooms Used | D12: X = # Rooms Used | E12: Frequency | F12: Relative Frequency P(X) | H12: X -E(X) | I12: (X - E(X))^2 | J12: (X - E(X))^2 * P(X)
A13: 2014-01-03 | B13: 1 | D13: 0 | E13: =COUNTIFS($B$13:$B$112,D13) -> 2 | F13: =E13/$E$18 -> 0.02 | H13: =D13-$F$21 -> -2.18 | I13: =H13^2 -> 4.7524 | J13: =I13*F13 -> 0.095048
A14: 2014-01-04 | B14: 2 | D14: 1 | E14: =COUNTIFS($B$13:$B$112,D14) -> 21 | F14: =E14/$E$18 -> 0.21 | H14: =D14-$F$21 -> -1.18 | I14: =H14^2 -> 1.3924 | J14: =I14*F14 -> 0.292404
A15: 2014-01-10 | B15: 4 | D15: 2 | E15: 42 | F15: 0.42 | H15: =D15-$F$21 -> -0.18 | I15: 0.0324 | J15: 0.013608
A16: 2014-01-11 | B16: 3 | D16: 3 | E16: 27 | F16: 0.27 | H16: =D16-$F$21 -> 0.82 | I16: 0.6724 | J16: 0.181548
A17: 2014-01-17 | B17: 3 | D17: 4 | E17: 8 | F17: 0.08 | H17: =D17-$F$21 -> 1.82 | I17: 3.3124 | J17: 0.264992
A18: 2014-01-18 | B18: 2 | D18: Total | E18: =SUM(E13:E17) -> 100 | F18: =SUM(F13:F17) -> 1 | H18: =SUM(H13:H17) -> -0.9 | I18: s^2 | J18: =SUM(J13:J17) -> 0.8476
A19: 2014-01-24 | B19: 2
A20: 2014-01-25 | B20: 2 | I20: s | J20: =SQRT(J18) -> 0.9206519429
A21: 2014-01-31 | B21: 4 | D21: Mean = Expected Value = E(x) = µ | F21: =SUMPRODUCT(D13:D17,F13:F17) -> 2.18
A22: 2014-02-01 | B22: 1 | D22: Mean | F22: =AVERAGE(B13:B112) -> 2.18
A23: 2014-02-07 | B23: 2 | D23: Population SD | F23: =_xlfn.STDEV.P(B13:B112) -> 0.9206519429
A24: 2014-02-08 | B24: 2 | D24: SD = s | F24: =SQRT(SUMPRODUCT((D13:D17-F21)^2,F13:F17)) -> 0.9206519429
A25: 2014-02-14 | B25: 2
A26: 2014-02-15 | B26: 1
A27: 2014-02-21 | B27: 1 | D27: P(X <=1) | E27: =SUM(F13:F14) -> 0.23
A28: 2014-02-22 | B28: 2 | D28: P(X = 2 OR X = 3) | E28: =SUM(F15:F16) -> 0.69
A29: 2014-02-28 | B29: 2 | D29: P(X > 0) | E29: =1-F13 -> 0.98 | F29: =SUM(F14:F17) -> 0.98
A30: 2014-03-07 | B30: 2
A31: 2014-03-08 | B31: 4
A32: 2014-03-14 | B32: 2
A33: 2014-03-15 | B33: 3
A34: 2014-03-21 | B34: 2
A35: 2014-03-22 | B35: 3
A36: 2014-03-28 | B36: 3
A37: 2014-03-29 | B37: 2
A38: 2014-04-04 | B38: 2
A39: 2014-04-05 | B39: 2
A40: 2014-04-11 | B40: 2
A41: 2014-04-12 | B41: 3
A42: 2014-04-18 | B42: 3
A43: 2014-04-25 | B43: 1
A44: 2014-04-26 | B44: 1
A45: 2014-05-02 | B45: 3
A46: 2014-05-03 | B46: 3
A47: 2014-05-09 | B47: 1
A48: 2014-05-10 | B48: 3
A49: 2014-05-16 | B49: 2
A50: 2014-05-17 | B50: 3
A51: 2014-05-23 | B51: 1
A52: 2014-05-24 | B52: 1
A53: 2014-05-30 | B53: 2
A54: 2014-05-31 | B54: 1
A55: 2014-06-06 | B55: 1
A56: 2014-06-07 | B56: 4
A57: 2014-06-14 | B57: 3
A58: 2014-06-20 | B58: 1
A59: 2014-06-21 | B59: 3
A60: 2014-06-27 | B60: 2
A61: 2014-06-28 | B61: 2
A62: 2014-07-04 | B62: 2
A63: 2014-07-05 | B63: 2
A64: 2014-07-11 | B64: 3
A65: 2014-07-12 | B65: 3
A66: 2014-07-18 | B66: 2
A67: 2014-07-19 | B67: 2
A68: 2014-07-25 | B68: 2
A69: 2014-07-26 | B69: 1
A70: 2014-08-01 | B70: 2
A71: 2014-08-02 | B71: 2
A72: 2014-08-08 | B72: 3
A73: 2014-08-09 | B73: 0
A74: 2014-08-15 | B74: 3
A75: 2014-08-16 | B75: 4
A76: 2014-08-22 | B76: 3
A77: 2014-08-23 | B77: 1
A78: 2014-08-29 | B78: 2
A79: 2014-08-30 | B79: 2
A80: 2014-09-05 | B80: 1
A81: 2014-09-06 | B81: 2
A82: 2014-09-12 | B82: 3
A83: 2014-09-13 | B83: 2
A84: 2014-09-19 | B84: 2
A85: 2014-09-20 | B85: 3
A86: 2014-09-26 | B86: 3
A87: 2014-09-27 | B87: 1
A88: 2014-10-03 | B88: 1
A89: 2014-10-04 | B89: 2
A90: 2014-10-10 | B90: 1
A91: 2014-10-11 | B91: 3
A92: 2014-10-17 | B92: 3
A93: 2014-10-18 | B93: 2
A94: 2014-10-24 | B94: 2
A95: 2014-10-25 | B95: 2
A96: 2014-10-31 | B96: 2
A97: 2014-11-01 | B97: 1
A98: 2014-11-07 | B98: 2
A99: 2014-11-08 | B99: 4
A100: 2014-11-14 | B100: 0
A101: 2014-11-15 | B101: 4
A102: 2014-11-21 | B102: 2
A103: 2014-11-22 | B103: 1
A104: 2014-11-29 | B104: 3
A105: 2014-12-05 | B105: 4
A106: 2014-12-06 | B106: 3
A107: 2014-12-12 | B107: 3
A108: 2014-12-13 | B108: 2
A109: 2014-12-19 | B109: 1
A110: 2014-12-20 | B110: 3
A111: 2014-12-26 | B111: 2
A112: 2014-12-27 | B112: 2

Sheet PD(3)
A1: Steps to Build Discrete Probability Distribution:
A2: #1 | B2: Define Random Variable
A3: #2 | B3: Build Frequency Distribution
A4: #3 | B4: Calculate Relative Frequency - P(x) = f(x)
A5: #4 | B5: Check Requirement #1: f(x) >= 0 , Check Requirement #2: Σf(x) = 1
A6: #5 | B6: Create a Column Chart for a Discrete Variable (Columns do not touch)
A7: #6 | B7: Make predictions
A9: Data collected: Number of Arrivals to Dick's Hamburgers at 45th Ave in Seattle at Saturday noon lunch during a 1-minute period.
A10: Discrete Variable = X = Number of Arrivals in 1 min period during Sat. noon lunch rush (noon to 1 PM)
A13: X = Arrivals During 1 min | C13: X = Arrivals During 1 min | D13: Frequency | E13: P(X) Relative Frequency
A14: 0 | C14: 0 | G14: Mean
A15: 0 | C15: 1 | G15: Variance
A16: 0 | C16: 2 | G16: SD
A17: 0 | C17: 3
A18: 0 | C18: 4 | G18: P(X <=2)
A19: 0 | C19: 5 | G19: P(X = 3 OR X = 4 OR x = 5)
A20: 0 | C20: 6 | G20: P(X > 0)
A21: 0 | C21: 7
A22: 0 | C22: 8
A23: 0 | C23: 9
A24: 0 | C24: 10
A25: 0 | C25: 11
A26: 0 | C26: 12
A27: 0 | C27: 13
A28: 0 | C28: 14
A29: 0 | C29: Total
A30: 0
A31: 0
A32: 0
A33: 0
A34: 0
A35: 0
A36: 0
A37: 0
A38: 0
A39: 0
A40: 0
A41: 0
A42: 1
A43: 1
A44: 1
A45: 1
A46: 1
A47: 1
A48: 1
A49: 1
A50: 1
A51: 1
A52: 1
A53: 1
A54: 1
A55: 1
A56: 1
A57: 1
A58: 1
A59: 1
A60: 1
A61: 1
A62: 1
A63: 1
A64: 1
A65: 1
A66: 1
A67: 1
A68: 1
A69: 1
A70: 1
A71: 1
A72: 1
A73: 1
A74: 1
A75: 1
A76: 1
A77: 1
A78: 1
A79: 1
A80: 1
A81: 1
A82: 1
A83: 1
A84: 1
A85: 1
A86: 1
A87: 1
A88: 1
A89: 1
A90: 1
A91: 1
A92: 1
A93: 1
A94: 1
A95: 1
A96: 1
A97: 1
A98: 1
A99: 1
A100: 1
A101: 1
A102: 1
A103: 1
A104: 1
A105: 1
A106: 1
A107: 1
A108: 1
A109: 1
A110: 1
A111: 1
A112: 1
A113: 1
A114: 1
A115: 1
A116: 1
A117: 1
A118: 1
A119: 1
A120: 1
A121: 1
A122: 1
A123: 1
A124: 1
A125: 1
A126: 1
A127: 1
A128: 1
A129: 1
A130: 1
A131: 1
A132: 1
A133: 1
A134: 1
A135: 1
A136: 1
A137: 1
A138: 1
A139: 1
A140: 1
A141: 1
A142: 1
A143: 1
A144: 2
A145: 2
A146: 2
A147: 2
A148: 2
A149: 2
A150: 2
A151: 2
A152: 2
A153: 2
A154: 2
A155: 2
A156: 2
A157: 2
A158: 2
A159: 2
A160: 2
A161: 2
A162: 2
A163: 2
A164: 2
A165: 2
A166: 2
A167: 2
A168: 2
A169: 2
A170: 2
A171: 2
A172: 2
A173: 2
A174: 2
A175: 2
A176: 2
A177: 2
A178: 2
A179: 2
A180: 2
A181: 2
A182: 2
A183: 2
A184: 2
A185: 2
A186: 2
A187: 2
A188: 2
A189: 2
A190: 2
A191: 2
A192: 2
A193: 2
A194: 2
A195: 2
A196: 2
A197: 2
A198: 2
A199: 2
A200: 2
A201: 2
A202: 2
A203: 2
... 1115 more rows

Sheet PD(3an)
A1: Steps to Build Discrete Probability Distribution:
A2: #1 | B2: Define Random Variable
A3: #2 | B3: Build Frequency Distribution
A4: #3 | B4: Calculate Relative Frequency - P(x) = f(x)
A5: #4 | B5: Check Requirement #1: f(x) >= 0 , Check Requirement #2: Σf(x) = 1
A6: #5 | B6: Create a Column Chart for a Discrete Variable (Columns do not touch)
A7: #6 | B7: Make predictions
A9: Data collected: Number of Arrivals to Dick's Hamburgers at 45th Ave in Seattle at Saturday noon lunch during a 1-minute period.
A10: Discrete Variable = X = Number of Arrivals in 1 min period during Sat. noon lunch rush (noon to 1 PM)
A13: X = Arrivals During 1 min | C13: X = Arrivals During 1 min | D13: Frequency | E13: P(X) Relative Frequency
A14: 0 | C14: 0 | D14: =COUNTIFS($A$14:$A$1318,C14) -> 28 | E14: =D14/$D$29 -> 0.0214559387 | G14: Mean | H14: =SUMPRODUCT(C14:C28,E14:E28) -> 3.879693487
A15: 0 | C15: 1 | D15: =COUNTIFS($A$14:$A$1318,C15) -> 102 | E15: =D15/$D$29 -> 0.07816091954 | G15: Variance | H15: =SUMPRODUCT((C14:C28-H14)^2,E14:E28) -> 3.751809868
A16: 0 | C16: 2 | D16: 191 | E16: 0.1463601533 | G16: SD | H16: =SQRT(H15) -> 1.936958923
A17: 0 | C17: 3 | D17: 263 | E17: 0.201532567
A18: 0 | C18: 4 | D18: 266 | E18: 0.2038314176 | G18: P(X <=2) | H18: =SUM(E14:E16) -> 0.2459770115
A19: 0 | C19: 5 | D19: 204 | E19: 0.1563218391 | G19: P(X = 3 OR X = 4 OR x = 5) | H19: =SUM(E17:E19) -> 0.5616858238
A20: 0 | C20: 6 | D20: 136 | E20: 0.1042145594 | G20: P(X > 0) | H20: =1-E14 -> 0.9785440613
A21: 0 | C21: 7 | D21: 70 | E21: 0.05363984674
A22: 0 | C22: 8 | D22: 22 | E22: 0.01685823755
A23: 0 | C23: 9 | D23: 14 | E23: 0.01072796935
A24: 0 | C24: 10 | D24: 5 | E24: 0.003831417625
A25: 0 | C25: 11 | D25: 2 | E25: 0.00153256705
A26: 0 | C26: 12 | D26: 1 | E26: 0.0007662835249
A27: 0 | C27: 13 | D27: 0 | E27: 0
A28: 0 | C28: 14 | D28: 1 | E28: 0.0007662835249
A29: 0 | C29: Total | D29: =SUM(D14:D28) -> 1305 | E29: =SUM(E14:E28) -> 1
A30: 0
A31: 0
A32: 0
A33: 0
A34: 0
A35: 0
A36: 0
A37: 0
A38: 0
A39: 0
A40: 0
A41: 0
A42: 1
A43: 1
A44: 1
A45: 1
A46: 1
A47: 1
A48: 1
A49: 1
A50: 1
A51: 1
A52: 1
A53: 1
A54: 1
A55: 1
A56: 1
A57: 1
A58: 1
A59: 1
A60: 1
A61: 1
A62: 1
A63: 1
A64: 1
A65: 1
A66: 1
A67: 1
A68: 1
A69: 1
A70: 1
A71: 1
A72: 1
A73: 1
A74: 1
A75: 1
A76: 1
A77: 1
A78: 1
A79: 1
A80: 1
A81: 1
A82: 1
A83: 1
A84: 1
A85: 1
A86: 1
A87: 1
A88: 1
A89: 1
A90: 1
A91: 1
A92: 1
A93: 1
A94: 1
A95: 1
A96: 1
A97: 1
A98: 1
A99: 1
A100: 1
A101: 1
A102: 1
A103: 1
A104: 1
A105: 1
A106: 1
A107: 1
A108: 1
A109: 1
A110: 1
A111: 1
A112: 1
A113: 1
A114: 1
A115: 1
A116: 1
A117: 1
A118: 1
A119: 1
A120: 1
A121: 1
A122: 1
A123: 1
A124: 1
A125: 1
A126: 1
A127: 1
A128: 1
A129: 1
A130: 1
A131: 1
A132: 1
A133: 1
A134: 1
A135: 1
A136: 1
A137: 1
A138: 1
A139: 1
A140: 1
A141: 1
A142: 1
A143: 1
A144: 2
A145: 2
A146: 2
A147: 2
A148: 2
A149: 2
A150: 2
A151: 2
A152: 2
A153: 2
A154: 2
A155: 2
A156: 2
A157: 2
A158: 2
A159: 2
A160: 2
A161: 2
A162: 2
A163: 2
A164: 2
A165: 2
A166: 2
A167: 2
A168: 2
A169: 2
A170: 2
A171: 2
A172: 2
A173: 2
A174: 2
A175: 2
A176: 2
A177: 2
A178: 2
A179: 2
A180: 2
A181: 2
A182: 2
A183: 2
A184: 2
A185: 2
A186: 2
A187: 2
A188: 2
A189: 2
A190: 2
A191: 2
A192: 2
A193: 2
A194: 2
A195: 2
A196: 2
A197: 2
A198: 2
A199: 2
A200: 2
A201: 2
A202: 2
A203: 2
... 1115 more rows

Sheet EVSD(1)
A1: Unit Demand = x | B1: Prob = f(x)
A2: 500 | B2: 0.1
A3: 600 | B3: 0.15
A4: 700 | B4: 0.15
A5: 800 | B5: 0.2
A6: 900 | B6: 0.2
A7: 1000 | B7: 0.15
A8: 1100 | B8: 0.05
B9: =SUM(B2:B8) -> 1
A11: Mean = Expected Value | C11: = monthly order quantity
A12: SD
A14: Price per unit | B14: 125
A15: Cost per unit | B15: 60
A16: Units sold for cash | B16: 500
A17: Cash IN
A18: Cash OUT
A19: Cash Flow Implication | D19: NOT Accrual Accounting Profit
B23: All Values
B24: 500
B25: 500
B26: 500
B27: 500
B28: 500
B29: 500
B30: 500
B31: 500
B32: 500
B33: 500
B34: 600
B35: 600
B36: 600
B37: 600
B38: 600
B39: 600
B40: 600
B41: 600
B42: 600
B43: 600
B44: 600
B45: 600
B46: 600
B47: 600
B48: 600
B49: 700
B50: 700
B51: 700
B52: 700
B53: 700
B54: 700
B55: 700
B56: 700
B57: 700
B58: 700
B59: 700
B60: 700
B61: 700
B62: 700
B63: 700
B64: 800
B65: 800
B66: 800
B67: 800
B68: 800
B69: 800
B70: 800
B71: 800
B72: 800
B73: 800
B74: 800
B75: 800
B76: 800
B77: 800
B78: 800
B79: 800
B80: 800
B81: 800
B82: 800
B83: 800
B84: 900
B85: 900
B86: 900
B87: 900
B88: 900
B89: 900
B90: 900
B91: 900
B92: 900
B93: 900
B94: 900
B95: 900
B96: 900
B97: 900
B98: 900
B99: 900
B100: 900
B101: 900
B102: 900
B103: 900
B104: 1000
B105: 1000
B106: 1000
B107: 1000
B108: 1000
B109: 1000
B110: 1000
B111: 1000
B112: 1000
B113: 1000
B114: 1000
B115: 1000
B116: 1000
B117: 1000
B118: 1000
B119: 1100
B120: 1100
B121: 1100
B122: 1100
B123: 1100
A124: VAR.P | B124: =_xlfn.VAR.P(B24:B123) -> 28900
A125: STDEV.S | B125: =_xlfn.STDEV.P(B24:B123) -> 170

Sheet EVSD(1an)
A1: Unit Demand = x | B1: Prob = f(x)
A2: 500 | B2: 0.1
A3: 600 | B3: 0.15
A4: 700 | B4: 0.15
A5: 800 | B5: 0.2
A6: 900 | B6: 0.2
A7: 1000 | B7: 0.15
A8: 1100 | B8: 0.05
B9: =SUM(B2:B8) -> 1
A11: Mean = Expected Value | B11: =SUMPRODUCT(A2:A8,B2:B8) -> 790 | C11: = monthly order quantity
A12: SD | B12: =SQRT(SUMPRODUCT((A2:A8-B11)^2,B2:B8)) -> 170
A14: Price per unit | B14: 125
A15: Cost per unit | B15: 60
A16: Units sold for cash | B16: 500
A17: Cash IN | B17: =B16*B14 -> 62500
A18: Cash OUT | B18: =MROUND(B11,100)*B15 -> 48000
A19: Cash Flow Implication | B19: =B17-B18 -> 14500 | D19: NOT Accrual Accounting Profit
B23: All Values
B24: 500
B25: 500
B26: 500
B27: 500
B28: 500
B29: 500
B30: 500
B31: 500
B32: 500
B33: 500
B34: 600
B35: 600
B36: 600
B37: 600
B38: 600
B39: 600
B40: 600
B41: 600
B42: 600
B43: 600
B44: 600
B45: 600
B46: 600
B47: 600
B48: 600
B49: 700
B50: 700
B51: 700
B52: 700
B53: 700
B54: 700
B55: 700
B56: 700
B57: 700
B58: 700
B59: 700
B60: 700
B61: 700
B62: 700
B63: 700
B64: 800
B65: 800
B66: 800
B67: 800
B68: 800
B69: 800
B70: 800
B71: 800
B72: 800
B73: 800
B74: 800
B75: 800
B76: 800
B77: 800
B78: 800
B79: 800
B80: 800
B81: 800
B82: 800
B83: 800
B84: 900
B85: 900
B86: 900
B87: 900
B88: 900
B89: 900
B90: 900
B91: 900
B92: 900
B93: 900
B94: 900
B95: 900
B96: 900
B97: 900
B98: 900
B99: 900
B100: 900
B101: 900
B102: 900
B103: 900
B104: 1000
B105: 1000
B106: 1000
B107: 1000
B108: 1000
B109: 1000
B110: 1000
B111: 1000
B112: 1000
B113: 1000
B114: 1000
B115: 1000
B116: 1000
B117: 1000
B118: 1000
B119: 1100
B120: 1100
B121: 1100
B122: 1100
B123: 1100
A124: VAR.P | B124: =_xlfn.VAR.P(B24:B123) -> 28900
A125: STDEV.S | B125: =_xlfn.STDEV.P(B24:B123) -> 170

Sheet EVSD(2)
A1: State of Economy | B1: Prob. Of State of Economy | C1: Stock A Return | D1: Stock B Return | E1: Stock C Return
A2: Boom | B2: 0.15 | C2: 0.15 | D2: 0.25 | E2: 0.11
A3: Normal | B3: =1-SUM(B2,B4) -> 0.3 | C3: 0.07 | D3: 0.13 | E3: 0.1
A4: Bust | B4: 0.55 | C4: -0.02 | D4: -0.135 | E4: 0.03
B5: E(Ri)
A6: Sd = Proxy for Risk | B6: Standard Deviation
B7: CV = SD/Mean
B8: Mean/SD

Sheet EVSD(2an)
A1: State of Economy | B1: Prob. Of State of Economy | C1: Stock A Return | D1: Stock B Return | E1: Stock C Return
A2: Boom | B2: 0.15 | C2: 0.15 | D2: 0.25 | E2: 0.11
A3: Normal | B3: =1-SUM(B2,B4) -> 0.3 | C3: 0.07 | D3: 0.13 | E3: 0.1
A4: Bust | B4: 0.55 | C4: -0.02 | D4: -0.135 | E4: 0.03
B5: E(Ri) | C5: =SUMPRODUCT(C2:C4,$B$2:$B$4) -> 0.0325 | D5: 0.00225 | E5: 0.063
A6: Sd = Proxy for Risk | B6: Standard Deviation | C6: =SQRT(SUMPRODUCT((C2:C4-C5)^2,$B$2:$B$4)) -> 0.06331469024 | D6: =SQRT(SUMPRODUCT((D2:D4-D5)^2,$B$2:$B$4)) -> 0.1564087194 | E6: 0.03661966685
B7: CV = SD/Mean | C7: =C6/C5 -> 1.948144315 | D7: =D6/D5 -> 69.51498639 | E7: 0.5812645531
B8: Mean/SD | C8: =C5/C6 -> 0.5133089948 | D8: =D5/D6 -> 0.01438538727 | E8: 1.720387033

Sheet BDPD
A1: pi = | B1: 0.2
A2: 1 - pi = | B2: =1-B1 -> 0.8
A3: n = | B3: 4
A4: Fixed # of Trials? | B4: Yes
A5: Each Trial Independent? | B5: Yes
A6: Success is? | B6: Sale | C6: S
A7: Fail is? | B7: No Sale | C7: NS
A8: Success or fail each trial? | B8: Yes
A9: pi the same each Trial? | B9: Yes
A10: Sample Space = | B10: =2^B3 -> 16
A12: ="Build Discrete Probability Distribution with "&A3&" "&B3&", "&A1&" "&B1 -> Build Discrete Probability Distribution with n = 4, pi = 0.2
A13: Possible Outcomes | B13: Attempted Sale | F13: # of Sales | G13: Probability associated with each attempt | K13: Probability of Occurrence Calculation | L13: Probability of Occurrence | N13: # of Sales (Random Variable X) | O13: P(x) | P13: P(x)
B14: 1st | C14: 2nd | D14: 3rd | E14: 4th | G14: 1st | H14: 2nd | I14: 3rd | J14: 4th
A15: 1 | B15: S | C15: S | D15: S | E15: S | F15: =COUNTIF(B15:E15,$C$6) -> 4 | G15: =IF(B15=$C$6,$B$1,$B$2) -> 0.2 | H15: 0.2 | I15: 0.2 | J15: 0.2 | K15: =G15&"*"&H15&"*"&I15&"*"&J15&" =" -> 0.2*0.2*0.2*0.2 = | L15: =PRODUCT(G15:J15) -> 0.0016 | N15: 0 | O15: ="P("&N15&") =" -> P(0) = | P15: =SUMIF($F$15:$F$30,N15,$L$15:$L$30) -> 0.4096
A16: 2 | B16: S | C16: S | D16: S | E16: NS | F16: 3 | G16: 0.2 | H16: 0.2 | I16: 0.2 | J16: 0.8 | K16: 0.2*0.2*0.2*0.8 = | L16: 0.0064 | N16: 1 | O16: ="P("&N16&") =" -> P(1) = | P16: =SUMIF($F$15:$F$30,N16,$L$15:$L$30) -> 0.4096
A17: 3 | B17: S | C17: S | D17: NS | E17: S | F17: 3 | G17: 0.2 | H17: 0.2 | I17: 0.8 | J17: 0.2 | K17: 0.2*0.2*0.8*0.2 = | L17: 0.0064 | N17: 2 | O17: ="P("&N17&") =" -> P(2) = | P17: =SUMIF($F$15:$F$30,N17,$L$15:$L$30) -> 0.1536
A18: 4 | B18: S | C18: NS | D18: S | E18: S | F18: 3 | G18: 0.2 | H18: 0.8 | I18: 0.2 | J18: 0.2 | K18: 0.2*0.8*0.2*0.2 = | L18: 0.0064 | N18: 3 | O18: ="P("&N18&") =" -> P(3) = | P18: =SUMIF($F$15:$F$30,N18,$L$15:$L$30) -> 0.0256
A19: 5 | B19: NS | C19: S | D19: S | E19: S | F19: 3 | G19: 0.8 | H19: 0.2 | I19: 0.2 | J19: 0.2 | K19: 0.8*0.2*0.2*0.2 = | L19: 0.0064 | N19: 4 | O19: ="P("&N19&") =" -> P(4) = | P19: =SUMIF($F$15:$F$30,N19,$L$15:$L$30) -> 0.0016
A20: 6 | B20: S | C20: S | D20: NS | E20: NS | F20: 2 | G20: 0.2 | H20: 0.2 | I20: 0.8 | J20: 0.8 | K20: 0.2*0.2*0.8*0.8 = | L20: 0.0256 | P20: =SUM(P15:P19) -> 1
A21: 7 | B21: S | C21: NS | D21: NS | E21: S | F21: 2 | G21: 0.2 | H21: 0.8 | I21: 0.8 | J21: 0.2 | K21: 0.2*0.8*0.8*0.2 = | L21: 0.0256
A22: 8 | B22: NS | C22: NS | D22: S | E22: S | F22: 2 | G22: 0.8 | H22: 0.8 | I22: 0.2 | J22: 0.2 | K22: 0.8*0.8*0.2*0.2 = | L22: 0.0256 | O22: E(x) | P22: =SUMPRODUCT(N15:N19,P15:P19) -> 0.8 | Q22: =B3*B1 -> 0.8
A23: 9 | B23: S | C23: NS | D23: S | E23: NS | F23: 2 | G23: 0.2 | H23: 0.8 | I23: 0.2 | J23: 0.8 | K23: 0.2*0.8*0.2*0.8 = | L23: 0.0256 | O23: SD | P23: =SQRT(SUMPRODUCT((N15:N19-P22)^2,P15:P19)) -> 0.8 | Q23: =SQRT(Q22*(1-B1)) -> 0.8
A24: 10 | B24: NS | C24: S | D24: NS | E24: S | F24: 2 | G24: 0.8 | H24: 0.2 | I24: 0.8 | J24: 0.2 | K24: 0.8*0.2*0.8*0.2 = | L24: 0.0256
A25: 11 | B25: NS | C25: S | D25: S | E25: NS | F25: 2 | G25: 0.8 | H25: 0.2 | I25: 0.2 | J25: 0.8 | K25: 0.8*0.2*0.2*0.8 = | L25: 0.0256
A26: 12 | B26: S | C26: NS | D26: NS | E26: NS | F26: 1 | G26: 0.2 | H26: 0.8 | I26: 0.8 | J26: 0.8 | K26: 0.2*0.8*0.8*0.8 = | L26: 0.1024
A27: 13 | B27: NS | C27: S | D27: NS | E27: NS | F27: 1 | G27: 0.8 | H27: 0.2 | I27: 0.8 | J27: 0.8 | K27: 0.8*0.2*0.8*0.8 = | L27: 0.1024
A28: 14 | B28: NS | C28: NS | D28: S | E28: NS | F28: 1 | G28: 0.8 | H28: 0.8 | I28: 0.2 | J28: 0.8 | K28: 0.8*0.8*0.2*0.8 = | L28: 0.1024
A29: 15 | B29: NS | C29: NS | D29: NS | E29: S | F29: 1 | G29: 0.8 | H29: 0.8 | I29: 0.8 | J29: 0.2 | K29: 0.8*0.8*0.8*0.2 = | L29: 0.1024
A30: 16 | B30: NS | C30: NS | D30: NS | E30: NS | F30: 0 | G30: 0.8 | H30: 0.8 | I30: 0.8 | J30: 0.8 | K30: 0.8*0.8*0.8*0.8 = | L30: 0.4096

Sheet B(1)
A1: An insurance agent has appointments with 4 clients tomorrow.
A2: From past data, the chance of making a sale is 1 in 5. What is likelihood that she will sell 3 policies in 4 tries?
A3: Binomial Experiment?
A4: 1 | B4: Fixed # of Identical Trials = n | G4: ="Binomial Distribution, n = "&E9&", p = "&E10 -> Binomial Distribution, n = 4, p = 0.2
A5: 2 | B5: Each trial only results in S or F
A6: 3 | B6: p remains the same for each trial
A7: 4 | B7: All events are independent
A9: n = # of Fixed Trials = Appointments | E9: 4
A10: p = Prob of Success = | E10: 0.2
A11: ="Random Discrete Variable = x = # Sales in "&E9&" Tries" -> Random Discrete Variable = x = # Sales in 4 Tries
A12: Mean = µ = E(x) = Expected Value =
A13: Mean = µ = E(x) = Expected Value =
A14: Standard Deviation = s =
A15: Standard Deviation = s =
K16: P(x) = f(x) | L16: P(x) = f(x)
A17: X | B17: P(x) = f(x) | K17: =FACT($E$9)/(FACT(A18)*FACT($E$9-A18))*$E$10^A18*(1-$E$10)^($E$9-A18) -> 0.4096 | L17: =COMBIN($E$9,A18)*$E$10^A18*(1-$E$10)^($E$9-A18) -> 0.4096
A18: 0 | K18: =FACT($E$9)/(FACT(A19)*FACT($E$9-A19))*$E$10^A19*(1-$E$10)^($E$9-A19) -> 0.4096 | L18: =COMBIN($E$9,A19)*$E$10^A19*(1-$E$10)^($E$9-A19) -> 0.4096
A19: 1 | K19: =FACT($E$9)/(FACT(A20)*FACT($E$9-A20))*$E$10^A20*(1-$E$10)^($E$9-A20) -> 0.1536 | L19: =COMBIN($E$9,A20)*$E$10^A20*(1-$E$10)^($E$9-A20) -> 0.1536
A20: 2 | K20: =FACT($E$9)/(FACT(A21)*FACT($E$9-A21))*$E$10^A21*(1-$E$10)^($E$9-A21) -> 0.0256 | L20: =COMBIN($E$9,A21)*$E$10^A21*(1-$E$10)^($E$9-A21) -> 0.0256
A21: 3 | K21: =FACT($E$9)/(FACT(A22)*FACT($E$9-A22))*$E$10^A22*(1-$E$10)^($E$9-A22) -> 0.0016 | L21: =COMBIN($E$9,A22)*$E$10^A22*(1-$E$10)^($E$9-A22) -> 0.0016
A22: 4 | J22: Total | K22: =SUM(K17:K21) -> 1 | L22: =SUM(L17:L21) -> 1
A23: Total
A25: P(x) = f(x) | B25: P(x) = f(x) | C25: SUM | D25: X
A26: ="P(x = "&D26&")" -> P(x = 3) | D26: 3
A27: ="P(x <= "&D30&")" -> P(x <= 3) | D27: 3
A28: ="P(x > "&D28&")" -> P(x > 3) | D28: 3
A29: ="P(x >= "&D27&")" -> P(x >= 3) | D29: 3
A30: ="P(x < "&D29&")" -> P(x < 3) | D30: 3

Sheet B(1an)
A1: An insurance agent has appointments with 4 clients tomorrow.
A2: From past data, the chance of making a sale is 1 in 5. What is likelihood that she will sell 3 policies in 4 tries?
A3: Binomial Experiment?
A4: 1 | B4: Fixed # of Identical Trials = n | E4: Yes | G4: ="Binomial Distribution, n = "&E9&", p = "&E10 -> Binomial Distribution, n = 4, p = 0.2
A5: 2 | B5: Each trial only results in S or F | E5: Yes
A6: 3 | B6: p remains the same for each trial | E6: Yes
A7: 4 | B7: All events are independent | E7: Yes
A9: n = # of Fixed Trials = Appointments | E9: 4
A10: p = Prob of Success = | E10: 0.2
A11: ="Random Discrete Variable = x = # Sales in "&E9&" Tries" -> Random Discrete Variable = x = # Sales in 4 Tries
A12: Mean = µ = E(x) = Expected Value = | E12: =SUMPRODUCT(A18:A22,B18:B22) -> 0.8
A13: Mean = µ = E(x) = Expected Value = | E13: =E9*E10 -> 0.8
A14: Standard Deviation = s = | E14: =SQRT(SUMPRODUCT((A18:A22-E12)^2,B18:B22)) -> 0.8
A15: Standard Deviation = s = | E15: =SQRT(E13*(1-E10)) -> 0.8
K16: P(x) = f(x) | L16: P(x) = f(x)
A17: X | B17: P(x) = f(x) | E17: =SUMPRODUCT((A18:A22-E12)^2,B18:B22) -> 0.64 | K17: =FACT($E$9)/(FACT(A18)*FACT($E$9-A18))*$E$10^A18*(1-$E$10)^($E$9-A18) -> 0.4096 | L17: =COMBIN($E$9,A18)*$E$10^A18*(1-$E$10)^($E$9-A18) -> 0.4096
A18: 0 | B18: =_xlfn.BINOM.DIST(A18,$E$9,$E$10,0) -> 0.4096 | K18: =FACT($E$9)/(FACT(A19)*FACT($E$9-A19))*$E$10^A19*(1-$E$10)^($E$9-A19) -> 0.4096 | L18: =COMBIN($E$9,A19)*$E$10^A19*(1-$E$10)^($E$9-A19) -> 0.4096
A19: 1 | B19: =_xlfn.BINOM.DIST(A19,$E$9,$E$10,0) -> 0.4096 | K19: =FACT($E$9)/(FACT(A20)*FACT($E$9-A20))*$E$10^A20*(1-$E$10)^($E$9-A20) -> 0.1536 | L19: =COMBIN($E$9,A20)*$E$10^A20*(1-$E$10)^($E$9-A20) -> 0.1536
A20: 2 | B20: 0.1536 | K20: =FACT($E$9)/(FACT(A21)*FACT($E$9-A21))*$E$10^A21*(1-$E$10)^($E$9-A21) -> 0.0256 | L20: =COMBIN($E$9,A21)*$E$10^A21*(1-$E$10)^($E$9-A21) -> 0.0256
A21: 3 | B21: 0.0256 | K21: =FACT($E$9)/(FACT(A22)*FACT($E$9-A22))*$E$10^A22*(1-$E$10)^($E$9-A22) -> 0.0016 | L21: =COMBIN($E$9,A22)*$E$10^A22*(1-$E$10)^($E$9-A22) -> 0.0016
A22: 4 | B22: 0.0016 | J22: Total | K22: =SUM(K17:K21) -> 1 | L22: =SUM(L17:L21) -> 1
A23: Total | B23: =SUM(B18:B22) -> 1
A25: P(x) = f(x) | B25: P(x) = f(x) | C25: SUM | D25: X
A26: ="P(x = "&D26&")" -> P(x = 3) | B26: =_xlfn.BINOM.DIST(D26,E9,E10,0) -> 0.0256 | C26: =B21 -> 0.0256 | D26: 3
A27: ="P(x <= "&D30&")" -> P(x <= 3) | B27: =_xlfn.BINOM.DIST(D27,E9,E10,1) -> 0.9984 | C27: =SUM(B18:B21) -> 0.9984 | D27: 3
A28: ="P(x > "&D28&")" -> P(x > 3) | B28: =1-_xlfn.BINOM.DIST(D28,E9,E10,1) -> 0.0016 | C28: =B22 -> 0.0016 | D28: 3
A29: ="P(x >= "&D27&")" -> P(x >= 3) | B29: =1-_xlfn.BINOM.DIST(D29-1,E9,E10,1) -> 0.0272 | C29: =SUM(B21:B22) -> 0.0272 | D29: 3
A30: ="P(x < "&D29&")" -> P(x < 3) | B30: =_xlfn.BINOM.DIST(D30-1,E9,E10,1) -> 0.9728 | C30: =SUM(B18:B20) -> 0.9728 | D30: 3

Sheet B(2)
A1: A flight from Oakland to Seattle occurs 6 times per day. The probability that any 1 flight is late is 10%.
A2: What is the probability that exactly 2 planes are late? Less than 2 are late? What is the mean and standard deviation?
A3: Binomial Experiment?
A4: 1 | B4: Fixed # of Identical Trials = n | G4: ="Binomial Distribution, n = "&E9&", p = "&E10 -> Binomial Distribution, n = , p =
A5: 2 | B5: Each trial only results in S or F
A6: 3 | B6: p remains the same for each trial
A7: 4 | B7: All events are independent
A9: n = # of Fixed Trials =# flights
A10: p = Prob of Success =
A11: ="Random Discrete Variable = x = Planes Late in "&E9&" Tries" -> Random Discrete Variable = x = Planes Late in Tries
A12: Mean = µ = E(x) = Expected Value =
A13: Standard Deviation = s =
A15: X | B15: P(x) = f(x) | D15: P(x) = f(x) | E15: P(x) = f(x) | F15: SUM | G15: X
A16: 0 | D16: ="P(x = "&G16&")" -> P(x = 2) | G16: 2
A17: 1 | D17: ="P(x <= "&G18&")" -> P(x <= 2) | G17: 2
A18: 2 | D18: ="P(x < "&G19&")" -> P(x < 2) | G18: 2
A19: 3 | D19: ="P(x >= "&G17&")" -> P(x >= 2) | G19: 2
A20: 4 | D20: ="P(x > "&G20&")" -> P(x > 2) | G20: 2
A21: 5
A22: 6
A23: Total

Sheet B(2an)
A1: A flight from Oakland to Seattle occurs 6 times per day. The probability that any 1 flight is late is 10%.
A2: What is the probability that exactly 2 planes are late? Less than 2 are late? What is the mean and standard deviation?
A3: Binomial Experiment?
A4: 1 | B4: Fixed # of Identical Trials = n | E4: Yes | G4: ="Binomial Distribution, n = "&E9&", p = "&E10 -> Binomial Distribution, n = 6, p = 0.1
A5: 2 | B5: Each trial only results in S or F | E5: Yes
A6: 3 | B6: p remains the same for each trial | E6: Yes
A7: 4 | B7: All events are independent | E7: Yes
A9: n = # of Fixed Trials =# flights | E9: 6
A10: p = Prob of Success = | E10: 0.1
A11: ="Random Discrete Variable = x = Planes Late in "&E9&" Tries" -> Random Discrete Variable = x = Planes Late in 6 Tries
A12: Mean = µ = E(x) = Expected Value = | E12: =E9*E10 -> 0.6
A13: Standard Deviation = s = | E13: =SQRT(E12*(1-E10)) -> 0.7348469228 | G13: =SQRT(SUMPRODUCT((A16:A22-E12)^2,B16:B22)) -> 0.7348469228
A15: X | B15: P(x) = f(x) | D15: P(x) = f(x) | E15: P(x) = f(x) | F15: SUM | G15: X
A16: 0 | B16: =_xlfn.BINOM.DIST(A16,$E$9,$E$10,0) -> 0.531441 | D16: ="P(x = "&G16&")" -> P(x = 2) | E16: =_xlfn.BINOM.DIST(G16,E9,E10,0) -> 0.098415 | F16: =B18 -> 0.098415 | G16: 2
A17: 1 | B17: =_xlfn.BINOM.DIST(A17,$E$9,$E$10,0) -> 0.354294 | D17: ="P(x <= "&G18&")" -> P(x <= 2) | E17: =_xlfn.BINOM.DIST(G17,E9,E10,1) -> 0.98415 | F17: =SUM(B16:B18) -> 0.98415 | G17: 2
A18: 2 | B18: 0.098415 | D18: ="P(x < "&G19&")" -> P(x < 2) | E18: =_xlfn.BINOM.DIST(G18-1,E9,E10,1) -> 0.885735 | F18: =SUM(B16:B17) -> 0.885735 | G18: 2
A19: 3 | B19: 0.01458 | D19: ="P(x >= "&G17&")" -> P(x >= 2) | E19: =1-_xlfn.BINOM.DIST(G19-1,E9,E10,1) -> 0.114265 | F19: =SUM(B18:B22) -> 0.114265 | G19: 2
A20: 4 | B20: 0.001215 | D20: ="P(x > "&G20&")" -> P(x > 2) | E20: =1-_xlfn.BINOM.DIST(G20,E9,E10,1) -> 0.01585 | F20: =SUM(B19:B22) -> 0.01585 | G20: 2
A21: 5 | B21: 5.4e-05
A22: 6 | B22: 1e-06
A23: Total | B23: =SUM(B16:B22) -> 1

Sheet B(3)
A1: The probability of getting stuck in traffic on the West Seattle Bridge in the morning is 0.15.
A2: Over the next two weeks (10 workdays), what is probability that you will get stuck in traffic 0 times? 1 Time?
A3: Binomial Experiment?
A4: 1 | B4: Fixed # of Identical Trials = n | G4: ="Binomial Distribution, n = "&E9&", p = "&E10 -> Binomial Distribution, n = , p =
A5: 2 | B5: Each trial only results in S or F
A6: 3 | B6: p remains the same for each trial
A7: 4 | B7: All events are independent
A9: n = # of Fixed Trials = # drive on bridge
A10: p = Prob of Success =
A11: ="Random Discrete Variable = x = Stuck In Traffic in "&E9&" Tries" -> Random Discrete Variable = x = Stuck In Traffic in Tries
A12: Mean = µ = E(x) = Expected Value =
A14: X | B14: P(x) = f(x)
A15: 0
A16: 1
A17: 2
A18: 3
A19: 4
A20: 5
A21: 6
A22: 7
A23: 8
A24: 9
A25: 10
A26: Total

Sheet B(3an)
A1: The probability of getting stuck in traffic on the West Seattle Bridge in the morning is 0.15.
A2: Over the next two weeks (10 workdays), what is probability that you will get stuck in traffic 0 times? 1 Time?
A3: Binomial Experiment?
A4: 1 | B4: Fixed # of Identical Trials = n | E4: Yes | G4: ="Binomial Distribution, n = "&E9&", p = "&E10 -> Binomial Distribution, n = 10, p = 0.15
A5: 2 | B5: Each trial only results in S or F | E5: Yes
A6: 3 | B6: p remains the same for each trial | E6: Yes
A7: 4 | B7: All events are independent | E7: Yes
A9: n = # of Fixed Trials = # drive on bridge | E9: 10
A10: p = Prob of Success = | E10: 0.15
A11: ="Random Discrete Variable = x = Stuck In Traffic in "&E9&" Tries" -> Random Discrete Variable = x = Stuck In Traffic in 10 Tries
A12: Mean = µ = E(x) = Expected Value = | E12: =E9*E10 -> 1.5
A14: X | B14: P(x) = f(x)
A15: 0 | B15: =_xlfn.BINOM.DIST(A15,$E$9,$E$10,0) -> 0.1968744043
A16: 1 | B16: =_xlfn.BINOM.DIST(A16,$E$9,$E$10,0) -> 0.3474254194
A17: 2 | B17: 0.2758966566
A18: 3 | B18: 0.1298337208
A19: 4 | B19: 0.04009570788
A20: 5 | B20: 0.008490855786
A21: 6 | B21: 0.001248655263
A22: 7 | B22: 0.0001259148164
A23: 8 | B23: 8.332598145e-06
A24: 9 | B24: 3.267685547e-07
A25: 10 | B25: 5.766503906e-09
A26: Total | B26: =SUM(B15:B25) -> 1

Sheet B(4)
A1: Highline found that 16.00% of its students withdraw from Accounting 202.
A2: In the current class that has 35 students enrolled, what is the probability that between 3 and 7 students withdraw? What is the mean?
A3: Binomial Experiment?
A4: 1 | B4: Fixed # of Identical Trials = n | E4: Yes | G4: X | H4: P(x) = f(x)
A5: 2 | B5: Each trial only results in S or F | E5: Yes | G5: 0 | H5: =_xlfn.BINOM.DIST(G5,$E$9,$E$10,0) -> 0.002237561661
A6: 3 | B6: p remains the same for each trial | E6: Yes | G6: 1 | H6: =_xlfn.BINOM.DIST(G6,$E$9,$E$10,0) -> 0.01491707774
A7: 4 | B7: All events are independent | E7: Yes | G7: 2 | H7: 0.0483029184
G8: 3 | H8: 0.1012061147
A9: n = # of Fixed Trials = Appointments | E9: 35 | G9: 4 | H9: 0.1542188415
A10: p = Prob of Success = | E10: 0.16 | G10: 5 | H10: 0.1821251081
A11: ="Random Discrete Variable = x = withdraw from class in "&E9&" Tries" -> Random Discrete Variable = x = withdraw from class in 35 Tries | G11: 6 | H11: 0.1734524839
A12: Mean = µ = E(x) = Expected Value = | G12: 7 | H12: 0.1368740689
G13: 8 | H13: 0.09124937928
B14: 3 | C14: 7 | D14: P(3 <= X <= 7) | G14: 9 | H14: 0.05214250245
G15: 10 | H15: 0.02582295359
G16: 11 | H16: 0.01117876779
G17: 12 | H17: 0.004258578205
G18: 13 | H18: 0.001435125256
G19: 14 | H19: 0.0004295613011
G20: 15 | H20: 0.0001145496803
G21: 16 | H21: 2.72737334e-05
G22: 17 | H22: 5.806172937e-06
G23: 18 | H23: 1.105937702e-06
G24: 19 | H24: 1.884806109e-07
G25: 20 | H25: 2.8720855e-08
G26: 21 | H26: 3.90759932e-09
G27: 22 | H27: 4.736484024e-10
G28: 23 | H28: 5.099320274e-11
G29: 24 | H29: 4.856495499e-12
G30: 25 | H30: 4.070205752e-13
G31: 26 | H31: 2.981835715e-14
G32: 27 | H32: 1.893229026e-15
G33: 28 | H33: 1.030328721e-16
G34: 29 | H34: 4.737143547e-18
G35: 30 | H35: 1.804626113e-19
G36: 33 | H36: 2.285782827e-24
G37: 34 | H37: 2.561101206e-26
G38: 35 | H38: 1.393796575e-28
G39: Total | H39: =SUM(H5:H38) -> 1

Sheet B(4an)
A1: Highline found that 16.00% of its students withdraw from Accounting 202.
A2: In the current class that has 35 students enrolled, what is the probability that between 3 and 7 students withdraw? What is the mean?
A3: Binomial Experiment?
A4: 1 | B4: Fixed # of Identical Trials = n | E4: Yes | G4: X | H4: P(x) = f(x)
A5: 2 | B5: Each trial only results in S or F | E5: Yes | G5: 0 | H5: =_xlfn.BINOM.DIST(G5,$E$9,$E$10,0) -> 0.002237561661
A6: 3 | B6: p remains the same for each trial | E6: Yes | G6: 1 | H6: =_xlfn.BINOM.DIST(G6,$E$9,$E$10,0) -> 0.01491707774
A7: 4 | B7: All events are independent | E7: Yes | G7: 2 | H7: 0.0483029184
G8: 3 | H8: 0.1012061147
A9: n = # of Fixed Trials = Appointments | E9: 35 | G9: 4 | H9: 0.1542188415
A10: p = Prob of Success = | E10: 0.16 | G10: 5 | H10: 0.1821251081
A11: ="Random Discrete Variable = x = withdraw from class in "&E9&" Tries" -> Random Discrete Variable = x = withdraw from class in 35 Tries | G11: 6 | H11: 0.1734524839
A12: Mean = µ = E(x) = Expected Value = | E12: =E9*E10 -> 5.6 | G12: 7 | H12: 0.1368740689
G13: 8 | H13: 0.09124937928
B14: 3 | C14: 7 | D14: P(3 <= X <= 7) | E14: =_xlfn.BINOM.DIST(C14,E9,E10,1)-_xlfn.BINOM.DIST(B14-1,E9,E10,1) -> 0.7478766172 | G14: 9 | H14: 0.05214250245
G15: 10 | H15: 0.02582295359
G16: 11 | H16: 0.01117876779
G17: 12 | H17: 0.004258578205
G18: 13 | H18: 0.001435125256
G19: 14 | H19: 0.0004295613011
G20: 15 | H20: 0.0001145496803
G21: 16 | H21: 2.72737334e-05
G22: 17 | H22: 5.806172937e-06
G23: 18 | H23: 1.105937702e-06
G24: 19 | H24: 1.884806109e-07
G25: 20 | H25: 2.8720855e-08
G26: 21 | H26: 3.90759932e-09
G27: 22 | H27: 4.736484024e-10
G28: 23 | H28: 5.099320274e-11
G29: 24 | H29: 4.856495499e-12
G30: 25 | H30: 4.070205752e-13
G31: 26 | H31: 2.981835715e-14
G32: 27 | H32: 1.893229026e-15
G33: 28 | H33: 1.030328721e-16
G34: 29 | H34: 4.737143547e-18
G35: 30 | H35: 1.804626113e-19
G36: 33 | H36: 2.285782827e-24
G37: 34 | H37: 2.561101206e-26
G38: 35 | H38: 1.393796575e-28
G39: Total | H39: =SUM(H5:H38) -> 1

Sheet B(5)
A1: n | B1: 10 | E1: ="Binomial Distribution, n = "&B1&" p = "&B2 -> Binomial Distribution, n = 10 p = 0.1
A2: p | B2: 0.1
A5: X | B5: p(x)
A6: =IF(ROWS(A$6:A6)<=$B$1+1,ROWS(A$6:A6)-1,"") -> 0 | B6: =IF(ROWS(A$6:A6)<=$B$1+1,_xlfn.BINOM.DIST(A6,$B$1,$B$2,0),"") -> 0.3486784401
A7: =IF(ROWS(A$6:A7)<=$B$1+1,ROWS(A$6:A7)-1,"") -> 1 | B7: =IF(ROWS(A$6:A7)<=$B$1+1,_xlfn.BINOM.DIST(A7,$B$1,$B$2,0),"") -> 0.387420489
A8: =IF(ROWS(A$6:A8)<=$B$1+1,ROWS(A$6:A8)-1,"") -> 2 | B8: =IF(ROWS(A$6:A8)<=$B$1+1,_xlfn.BINOM.DIST(A8,$B$1,$B$2,0),"") -> 0.1937102445
A9: =IF(ROWS(A$6:A9)<=$B$1+1,ROWS(A$6:A9)-1,"") -> 3 | B9: =IF(ROWS(A$6:A9)<=$B$1+1,_xlfn.BINOM.DIST(A9,$B$1,$B$2,0),"") -> 0.057395628
A10: =IF(ROWS(A$6:A10)<=$B$1+1,ROWS(A$6:A10)-1,"") -> 4 | B10: =IF(ROWS(A$6:A10)<=$B$1+1,_xlfn.BINOM.DIST(A10,$B$1,$B$2,0),"") -> 0.011160261
A11: =IF(ROWS(A$6:A11)<=$B$1+1,ROWS(A$6:A11)-1,"") -> 5 | B11: =IF(ROWS(A$6:A11)<=$B$1+1,_xlfn.BINOM.DIST(A11,$B$1,$B$2,0),"") -> 0.0014880348
A12: =IF(ROWS(A$6:A12)<=$B$1+1,ROWS(A$6:A12)-1,"") -> 6 | B12: =IF(ROWS(A$6:A12)<=$B$1+1,_xlfn.BINOM.DIST(A12,$B$1,$B$2,0),"") -> 0.000137781
A13: =IF(ROWS(A$6:A13)<=$B$1+1,ROWS(A$6:A13)-1,"") -> 7 | B13: =IF(ROWS(A$6:A13)<=$B$1+1,_xlfn.BINOM.DIST(A13,$B$1,$B$2,0),"") -> 8.748e-06
A14: =IF(ROWS(A$6:A14)<=$B$1+1,ROWS(A$6:A14)-1,"") -> 8 | B14: =IF(ROWS(A$6:A14)<=$B$1+1,_xlfn.BINOM.DIST(A14,$B$1,$B$2,0),"") -> 3.645e-07 | E14: As n increases, distributions approached Bell
A15: =IF(ROWS(A$6:A15)<=$B$1+1,ROWS(A$6:A15)-1,"") -> 9 | B15: =IF(ROWS(A$6:A15)<=$B$1+1,_xlfn.BINOM.DIST(A15,$B$1,$B$2,0),"") -> 9e-09 | E15: As p approaches 0.5, distributions approached Bell
A16: =IF(ROWS(A$6:A16)<=$B$1+1,ROWS(A$6:A16)-1,"") -> 10 | B16: =IF(ROWS(A$6:A16)<=$B$1+1,_xlfn.BINOM.DIST(A16,$B$1,$B$2,0),"") -> 1e-10 | E16: At p = .5, distribution is Bell
A17: =IF(ROWS(A$6:A17)<=$B$1+1,ROWS(A$6:A17)-1,"") ->  | B17: =IF(ROWS(A$6:A17)<=$B$1+1,_xlfn.BINOM.DIST(A17,$B$1,$B$2,0),"") -> 
A18: =IF(ROWS(A$6:A18)<=$B$1+1,ROWS(A$6:A18)-1,"") ->  | B18: =IF(ROWS(A$6:A18)<=$B$1+1,_xlfn.BINOM.DIST(A18,$B$1,$B$2,0),"") -> 
A19: =IF(ROWS(A$6:A19)<=$B$1+1,ROWS(A$6:A19)-1,"") ->  | B19: =IF(ROWS(A$6:A19)<=$B$1+1,_xlfn.BINOM.DIST(A19,$B$1,$B$2,0),"") -> 
A20: =IF(ROWS(A$6:A20)<=$B$1+1,ROWS(A$6:A20)-1,"") ->  | B20: =IF(ROWS(A$6:A20)<=$B$1+1,_xlfn.BINOM.DIST(A20,$B$1,$B$2,0),"") -> 
A21: =IF(ROWS(A$6:A21)<=$B$1+1,ROWS(A$6:A21)-1,"") ->  | B21: =IF(ROWS(A$6:A21)<=$B$1+1,_xlfn.BINOM.DIST(A21,$B$1,$B$2,0),"") -> 
A22: =IF(ROWS(A$6:A22)<=$B$1+1,ROWS(A$6:A22)-1,"") ->  | B22: =IF(ROWS(A$6:A22)<=$B$1+1,_xlfn.BINOM.DIST(A22,$B$1,$B$2,0),"") -> 
A23: =IF(ROWS(A$6:A23)<=$B$1+1,ROWS(A$6:A23)-1,"") ->  | B23: =IF(ROWS(A$6:A23)<=$B$1+1,_xlfn.BINOM.DIST(A23,$B$1,$B$2,0),"") -> 
A24: =IF(ROWS(A$6:A24)<=$B$1+1,ROWS(A$6:A24)-1,"") ->  | B24: =IF(ROWS(A$6:A24)<=$B$1+1,_xlfn.BINOM.DIST(A24,$B$1,$B$2,0),"") -> 
A25: =IF(ROWS(A$6:A25)<=$B$1+1,ROWS(A$6:A25)-1,"") ->  | B25: =IF(ROWS(A$6:A25)<=$B$1+1,_xlfn.BINOM.DIST(A25,$B$1,$B$2,0),"") -> 
A26: =IF(ROWS(A$6:A26)<=$B$1+1,ROWS(A$6:A26)-1,"") ->  | B26: =IF(ROWS(A$6:A26)<=$B$1+1,_xlfn.BINOM.DIST(A26,$B$1,$B$2,0),"") -> 
A27: =IF(ROWS(A$6:A27)<=$B$1+1,ROWS(A$6:A27)-1,"") ->  | B27: =IF(ROWS(A$6:A27)<=$B$1+1,_xlfn.BINOM.DIST(A27,$B$1,$B$2,0),"") -> 
A28: =IF(ROWS(A$6:A28)<=$B$1+1,ROWS(A$6:A28)-1,"") ->  | B28: =IF(ROWS(A$6:A28)<=$B$1+1,_xlfn.BINOM.DIST(A28,$B$1,$B$2,0),"") -> 
A29: =IF(ROWS(A$6:A29)<=$B$1+1,ROWS(A$6:A29)-1,"") ->  | B29: =IF(ROWS(A$6:A29)<=$B$1+1,_xlfn.BINOM.DIST(A29,$B$1,$B$2,0),"") -> 
A30: =IF(ROWS(A$6:A30)<=$B$1+1,ROWS(A$6:A30)-1,"") ->  | B30: =IF(ROWS(A$6:A30)<=$B$1+1,_xlfn.BINOM.DIST(A30,$B$1,$B$2,0),"") -> 
A31: =IF(ROWS(A$6:A31)<=$B$1+1,ROWS(A$6:A31)-1,"") ->  | B31: =IF(ROWS(A$6:A31)<=$B$1+1,_xlfn.BINOM.DIST(A31,$B$1,$B$2,0),"") -> 
A32: =IF(ROWS(A$6:A32)<=$B$1+1,ROWS(A$6:A32)-1,"") ->  | B32: =IF(ROWS(A$6:A32)<=$B$1+1,_xlfn.BINOM.DIST(A32,$B$1,$B$2,0),"") -> 
A33: =IF(ROWS(A$6:A33)<=$B$1+1,ROWS(A$6:A33)-1,"") ->  | B33: =IF(ROWS(A$6:A33)<=$B$1+1,_xlfn.BINOM.DIST(A33,$B$1,$B$2,0),"") -> 
A34: =IF(ROWS(A$6:A34)<=$B$1+1,ROWS(A$6:A34)-1,"") ->  | B34: =IF(ROWS(A$6:A34)<=$B$1+1,_xlfn.BINOM.DIST(A34,$B$1,$B$2,0),"") -> 
A35: =IF(ROWS(A$6:A35)<=$B$1+1,ROWS(A$6:A35)-1,"") ->  | B35: =IF(ROWS(A$6:A35)<=$B$1+1,_xlfn.BINOM.DIST(A35,$B$1,$B$2,0),"") -> 
A36: =IF(ROWS(A$6:A36)<=$B$1+1,ROWS(A$6:A36)-1,"") ->  | B36: =IF(ROWS(A$6:A36)<=$B$1+1,_xlfn.BINOM.DIST(A36,$B$1,$B$2,0),"") -> 
A37: =IF(ROWS(A$6:A37)<=$B$1+1,ROWS(A$6:A37)-1,"") ->  | B37: =IF(ROWS(A$6:A37)<=$B$1+1,_xlfn.BINOM.DIST(A37,$B$1,$B$2,0),"") -> 
A38: =IF(ROWS(A$6:A38)<=$B$1+1,ROWS(A$6:A38)-1,"") ->  | B38: =IF(ROWS(A$6:A38)<=$B$1+1,_xlfn.BINOM.DIST(A38,$B$1,$B$2,0),"") -> 
A39: =IF(ROWS(A$6:A39)<=$B$1+1,ROWS(A$6:A39)-1,"") ->  | B39: =IF(ROWS(A$6:A39)<=$B$1+1,_xlfn.BINOM.DIST(A39,$B$1,$B$2,0),"") -> 
A40: =IF(ROWS(A$6:A40)<=$B$1+1,ROWS(A$6:A40)-1,"") ->  | B40: =IF(ROWS(A$6:A40)<=$B$1+1,_xlfn.BINOM.DIST(A40,$B$1,$B$2,0),"") -> 
A41: =IF(ROWS(A$6:A41)<=$B$1+1,ROWS(A$6:A41)-1,"") ->  | B41: =IF(ROWS(A$6:A41)<=$B$1+1,_xlfn.BINOM.DIST(A41,$B$1,$B$2,0),"") -> 
A42: =IF(ROWS(A$6:A42)<=$B$1+1,ROWS(A$6:A42)-1,"") ->  | B42: =IF(ROWS(A$6:A42)<=$B$1+1,_xlfn.BINOM.DIST(A42,$B$1,$B$2,0),"") -> 
A43: =IF(ROWS(A$6:A43)<=$B$1+1,ROWS(A$6:A43)-1,"") ->  | B43: =IF(ROWS(A$6:A43)<=$B$1+1,_xlfn.BINOM.DIST(A43,$B$1,$B$2,0),"") -> 
A44: =IF(ROWS(A$6:A44)<=$B$1+1,ROWS(A$6:A44)-1,"") ->  | B44: =IF(ROWS(A$6:A44)<=$B$1+1,_xlfn.BINOM.DIST(A44,$B$1,$B$2,0),"") -> 
A45: =IF(ROWS(A$6:A45)<=$B$1+1,ROWS(A$6:A45)-1,"") ->  | B45: =IF(ROWS(A$6:A45)<=$B$1+1,_xlfn.BINOM.DIST(A45,$B$1,$B$2,0),"") -> 
A46: =IF(ROWS(A$6:A46)<=$B$1+1,ROWS(A$6:A46)-1,"") ->  | B46: =IF(ROWS(A$6:A46)<=$B$1+1,_xlfn.BINOM.DIST(A46,$B$1,$B$2,0),"") -> 
A47: =IF(ROWS(A$6:A47)<=$B$1+1,ROWS(A$6:A47)-1,"") ->  | B47: =IF(ROWS(A$6:A47)<=$B$1+1,_xlfn.BINOM.DIST(A47,$B$1,$B$2,0),"") -> 
A48: =IF(ROWS(A$6:A48)<=$B$1+1,ROWS(A$6:A48)-1,"") ->  | B48: =IF(ROWS(A$6:A48)<=$B$1+1,_xlfn.BINOM.DIST(A48,$B$1,$B$2,0),"") -> 
A49: =IF(ROWS(A$6:A49)<=$B$1+1,ROWS(A$6:A49)-1,"") ->  | B49: =IF(ROWS(A$6:A49)<=$B$1+1,_xlfn.BINOM.DIST(A49,$B$1,$B$2,0),"") -> 
A50: =IF(ROWS(A$6:A50)<=$B$1+1,ROWS(A$6:A50)-1,"") ->  | B50: =IF(ROWS(A$6:A50)<=$B$1+1,_xlfn.BINOM.DIST(A50,$B$1,$B$2,0),"") -> 
A51: =IF(ROWS(A$6:A51)<=$B$1+1,ROWS(A$6:A51)-1,"") ->  | B51: =IF(ROWS(A$6:A51)<=$B$1+1,_xlfn.BINOM.DIST(A51,$B$1,$B$2,0),"") -> 
A52: =IF(ROWS(A$6:A52)<=$B$1+1,ROWS(A$6:A52)-1,"") ->  | B52: =IF(ROWS(A$6:A52)<=$B$1+1,_xlfn.BINOM.DIST(A52,$B$1,$B$2,0),"") -> 
A53: =IF(ROWS(A$6:A53)<=$B$1+1,ROWS(A$6:A53)-1,"") ->  | B53: =IF(ROWS(A$6:A53)<=$B$1+1,_xlfn.BINOM.DIST(A53,$B$1,$B$2,0),"") -> 
A54: =IF(ROWS(A$6:A54)<=$B$1+1,ROWS(A$6:A54)-1,"") ->  | B54: =IF(ROWS(A$6:A54)<=$B$1+1,_xlfn.BINOM.DIST(A54,$B$1,$B$2,0),"") -> 
A55: =IF(ROWS(A$6:A55)<=$B$1+1,ROWS(A$6:A55)-1,"") ->  | B55: =IF(ROWS(A$6:A55)<=$B$1+1,_xlfn.BINOM.DIST(A55,$B$1,$B$2,0),"") -> 
A56: =IF(ROWS(A$6:A56)<=$B$1+1,ROWS(A$6:A56)-1,"") ->  | B56: =IF(ROWS(A$6:A56)<=$B$1+1,_xlfn.BINOM.DIST(A56,$B$1,$B$2,0),"") -> 
A57: =IF(ROWS(A$6:A57)<=$B$1+1,ROWS(A$6:A57)-1,"") ->  | B57: =IF(ROWS(A$6:A57)<=$B$1+1,_xlfn.BINOM.DIST(A57,$B$1,$B$2,0),"") -> 
A58: =IF(ROWS(A$6:A58)<=$B$1+1,ROWS(A$6:A58)-1,"") ->  | B58: =IF(ROWS(A$6:A58)<=$B$1+1,_xlfn.BINOM.DIST(A58,$B$1,$B$2,0),"") -> 
A59: =IF(ROWS(A$6:A59)<=$B$1+1,ROWS(A$6:A59)-1,"") ->  | B59: =IF(ROWS(A$6:A59)<=$B$1+1,_xlfn.BINOM.DIST(A59,$B$1,$B$2,0),"") -> 
A60: =IF(ROWS(A$6:A60)<=$B$1+1,ROWS(A$6:A60)-1,"") ->  | B60: =IF(ROWS(A$6:A60)<=$B$1+1,_xlfn.BINOM.DIST(A60,$B$1,$B$2,0),"") -> 
A61: =IF(ROWS(A$6:A61)<=$B$1+1,ROWS(A$6:A61)-1,"") ->  | B61: =IF(ROWS(A$6:A61)<=$B$1+1,_xlfn.BINOM.DIST(A61,$B$1,$B$2,0),"") -> 
A62: =IF(ROWS(A$6:A62)<=$B$1+1,ROWS(A$6:A62)-1,"") ->  | B62: =IF(ROWS(A$6:A62)<=$B$1+1,_xlfn.BINOM.DIST(A62,$B$1,$B$2,0),"") -> 
A63: =IF(ROWS(A$6:A63)<=$B$1+1,ROWS(A$6:A63)-1,"") ->  | B63: =IF(ROWS(A$6:A63)<=$B$1+1,_xlfn.BINOM.DIST(A63,$B$1,$B$2,0),"") -> 
A64: =IF(ROWS(A$6:A64)<=$B$1+1,ROWS(A$6:A64)-1,"") ->  | B64: =IF(ROWS(A$6:A64)<=$B$1+1,_xlfn.BINOM.DIST(A64,$B$1,$B$2,0),"") -> 
A65: =IF(ROWS(A$6:A65)<=$B$1+1,ROWS(A$6:A65)-1,"") ->  | B65: =IF(ROWS(A$6:A65)<=$B$1+1,_xlfn.BINOM.DIST(A65,$B$1,$B$2,0),"") -> 
A66: =IF(ROWS(A$6:A66)<=$B$1+1,ROWS(A$6:A66)-1,"") ->  | B66: =IF(ROWS(A$6:A66)<=$B$1+1,_xlfn.BINOM.DIST(A66,$B$1,$B$2,0),"") -> 
A67: =IF(ROWS(A$6:A67)<=$B$1+1,ROWS(A$6:A67)-1,"") ->  | B67: =IF(ROWS(A$6:A67)<=$B$1+1,_xlfn.BINOM.DIST(A67,$B$1,$B$2,0),"") -> 
A68: =IF(ROWS(A$6:A68)<=$B$1+1,ROWS(A$6:A68)-1,"") ->  | B68: =IF(ROWS(A$6:A68)<=$B$1+1,_xlfn.BINOM.DIST(A68,$B$1,$B$2,0),"") -> 
A69: =IF(ROWS(A$6:A69)<=$B$1+1,ROWS(A$6:A69)-1,"") ->  | B69: =IF(ROWS(A$6:A69)<=$B$1+1,_xlfn.BINOM.DIST(A69,$B$1,$B$2,0),"") -> 
A70: =IF(ROWS(A$6:A70)<=$B$1+1,ROWS(A$6:A70)-1,"") ->  | B70: =IF(ROWS(A$6:A70)<=$B$1+1,_xlfn.BINOM.DIST(A70,$B$1,$B$2,0),"") -> 
A71: =IF(ROWS(A$6:A71)<=$B$1+1,ROWS(A$6:A71)-1,"") ->  | B71: =IF(ROWS(A$6:A71)<=$B$1+1,_xlfn.BINOM.DIST(A71,$B$1,$B$2,0),"") -> 
A72: =IF(ROWS(A$6:A72)<=$B$1+1,ROWS(A$6:A72)-1,"") ->  | B72: =IF(ROWS(A$6:A72)<=$B$1+1,_xlfn.BINOM.DIST(A72,$B$1,$B$2,0),"") -> 
A73: =IF(ROWS(A$6:A73)<=$B$1+1,ROWS(A$6:A73)-1,"") ->  | B73: =IF(ROWS(A$6:A73)<=$B$1+1,_xlfn.BINOM.DIST(A73,$B$1,$B$2,0),"") -> 
A74: =IF(ROWS(A$6:A74)<=$B$1+1,ROWS(A$6:A74)-1,"") ->  | B74: =IF(ROWS(A$6:A74)<=$B$1+1,_xlfn.BINOM.DIST(A74,$B$1,$B$2,0),"") -> 
A75: =IF(ROWS(A$6:A75)<=$B$1+1,ROWS(A$6:A75)-1,"") ->  | B75: =IF(ROWS(A$6:A75)<=$B$1+1,_xlfn.BINOM.DIST(A75,$B$1,$B$2,0),"") -> 
A76: =IF(ROWS(A$6:A76)<=$B$1+1,ROWS(A$6:A76)-1,"") ->  | B76: =IF(ROWS(A$6:A76)<=$B$1+1,_xlfn.BINOM.DIST(A76,$B$1,$B$2,0),"") -> 
A77: =IF(ROWS(A$6:A77)<=$B$1+1,ROWS(A$6:A77)-1,"") ->  | B77: =IF(ROWS(A$6:A77)<=$B$1+1,_xlfn.BINOM.DIST(A77,$B$1,$B$2,0),"") -> 
A78: =IF(ROWS(A$6:A78)<=$B$1+1,ROWS(A$6:A78)-1,"") ->  | B78: =IF(ROWS(A$6:A78)<=$B$1+1,_xlfn.BINOM.DIST(A78,$B$1,$B$2,0),"") -> 
A79: =IF(ROWS(A$6:A79)<=$B$1+1,ROWS(A$6:A79)-1,"") ->  | B79: =IF(ROWS(A$6:A79)<=$B$1+1,_xlfn.BINOM.DIST(A79,$B$1,$B$2,0),"") -> 
A80: =IF(ROWS(A$6:A80)<=$B$1+1,ROWS(A$6:A80)-1,"") ->  | B80: =IF(ROWS(A$6:A80)<=$B$1+1,_xlfn.BINOM.DIST(A80,$B$1,$B$2,0),"") -> 
A81: =IF(ROWS(A$6:A81)<=$B$1+1,ROWS(A$6:A81)-1,"") ->  | B81: =IF(ROWS(A$6:A81)<=$B$1+1,_xlfn.BINOM.DIST(A81,$B$1,$B$2,0),"") -> 
A82: =IF(ROWS(A$6:A82)<=$B$1+1,ROWS(A$6:A82)-1,"") ->  | B82: =IF(ROWS(A$6:A82)<=$B$1+1,_xlfn.BINOM.DIST(A82,$B$1,$B$2,0),"") -> 
A83: =IF(ROWS(A$6:A83)<=$B$1+1,ROWS(A$6:A83)-1,"") ->  | B83: =IF(ROWS(A$6:A83)<=$B$1+1,_xlfn.BINOM.DIST(A83,$B$1,$B$2,0),"") -> 
A84: =IF(ROWS(A$6:A84)<=$B$1+1,ROWS(A$6:A84)-1,"") ->  | B84: =IF(ROWS(A$6:A84)<=$B$1+1,_xlfn.BINOM.DIST(A84,$B$1,$B$2,0),"") -> 
A85: =IF(ROWS(A$6:A85)<=$B$1+1,ROWS(A$6:A85)-1,"") ->  | B85: =IF(ROWS(A$6:A85)<=$B$1+1,_xlfn.BINOM.DIST(A85,$B$1,$B$2,0),"") -> 
